Workbook

Sheet PPF Calculator
Y1: 30000
D2: PPF Calculator
H4: Prepared by: Karthikeyan Chellappa
E8: Input Parameters | H8: Calculations | M8: Output Values
E9: Investment Frequency | F9: Monthly | H9: PPF Interest Rate | K9: 0.087 | M9: Maturity Amount | N9: =J250 -> 30000
E10: Investment Amount | F10: 83.25221793
H12: Year 1
E13: =IF(AND(F9="Monthly",F10*12>=150000),"Warning: Annual Investment should not exceed 1.5 lakh",IF(AND(F9="Quarterly",F10*4>150000),"Warning: Annual Investment should not exceed 1.5 lakh",IF(AND(F9="Half-Yearly",F10*2>150000),"Warning: Annual Investment should not exceed 1.5 lakh",IF(AND(F9="Annual",F10>150000),"Warning: Annual Investment should not exceed 1.5 lakh","")))) ->  | H13: Month | I13: Deposit | J13: Balance | K13: Interest
H14: Apr | I14: =$F$10 -> 83.25221793 | J14: =I14 -> 83.25221793 | K14: =J14*$K$9/12 -> 0.60357858
H15: May | I15: =IF($F$9="Monthly",$F$10,0) -> 83.25221793 | J15: =I15+J14 -> 166.5044359 | K15: 1.20715716
H16: Jun | I16: =IF($F$9="Monthly",$F$10,0) -> 83.25221793 | J16: =I16+J15 -> 249.7566538 | K16: 1.81073574
H17: Jul | I17: =IF(OR($F$9="Monthly",$F$9="Quarterly"),$F$10,0) -> 83.25221793 | J17: 333.0088717 | K17: 2.41431432
H18: Aug | I18: =IF($F$9="Monthly",$F$10,0) -> 83.25221793 | J18: 416.2610897 | K18: 3.0178929
H19: Sep | I19: =IF($F$9="Monthly",$F$10,0) -> 83.25221793 | J19: 499.5133076 | K19: 3.62147148
H20: Oct | I20: =IF($F$9<>"Annual",$F$10,0) -> 83.25221793 | J20: 582.7655255 | K20: 4.22505006
H21: Nov | I21: =IF($F$9="Monthly",$F$10,0) -> 83.25221793 | J21: 666.0177434 | K21: 4.82862864
H22: Dec | I22: =IF($F$9="Monthly",$F$10,0) -> 83.25221793 | J22: 749.2699614 | K22: 5.43220722
H23: Jan | I23: =IF(OR($F$9="Monthly",$F$9="Quarterly"),$F$10,0) -> 83.25221793 | J23: 832.5221793 | K23: 6.0357858
H24: Feb | I24: =IF($F$9="Monthly",$F$10,0) -> 83.25221793 | J24: 915.7743972 | K24: 6.63936438
H25: Mar | I25: =IF($F$9="Monthly",$F$10,0) -> 83.25221793 | J25: 999.0266152 | K25: 7.24294296
H26: Year End Balance | J26: =J25+SUM(K14:K25) -> 1046.105744
H28: Year 2
H29: Month | I29: Deposit | J29: Balance | K29: Interest
H30: Apr | I30: =$F$10 -> 83.25221793 | J30: =I30+J26 -> 1129.357962 | K30: =J30*$K$9/12 -> 8.187845227
H31: May | I31: =IF($F$9="Monthly",$F$10,0) -> 83.25221793 | J31: =I31+J30 -> 1212.61018 | K31: 8.791423807
H32: Jun | I32: =IF($F$9="Monthly",$F$10,0) -> 83.25221793 | J32: =I32+J31 -> 1295.862398 | K32: 9.395002387
H33: Jul | I33: =IF(OR($F$9="Monthly",$F$9="Quarterly"),$F$10,0) -> 83.25221793 | J33: 1379.114616 | K33: 9.998580967
H34: Aug | I34: =IF($F$9="Monthly",$F$10,0) -> 83.25221793 | J34: 1462.366834 | K34: 10.60215955
H35: Sep | I35: =IF($F$9="Monthly",$F$10,0) -> 83.25221793 | J35: 1545.619052 | K35: 11.20573813
H36: Oct | I36: =IF($F$9<>"Annual",$F$10,0) -> 83.25221793 | J36: 1628.87127 | K36: 11.80931671
H37: Nov | I37: =IF($F$9="Monthly",$F$10,0) -> 83.25221793 | J37: 1712.123488 | K37: 12.41289529
H38: Dec | I38: =IF($F$9="Monthly",$F$10,0) -> 83.25221793 | J38: 1795.375706 | K38: 13.01647387
H39: Jan | I39: =IF(OR($F$9="Monthly",$F$9="Quarterly"),$F$10,0) -> 83.25221793 | J39: 1878.627924 | K39: 13.62005245
H40: Feb | I40: =IF($F$9="Monthly",$F$10,0) -> 83.25221793 | J40: 1961.880142 | K40: 14.22363103
H41: Mar | I41: =IF($F$9="Monthly",$F$10,0) -> 83.25221793 | J41: 2045.13236 | K41: 14.82720961
H42: Year End Balance | J42: =J41+SUM(K30:K41) -> 2183.222689
H44: Year 3
H45: Month | I45: Deposit | J45: Balance | K45: Interest
H46: Apr | I46: =$F$10 -> 83.25221793 | J46: =I46+J42 -> 2266.474907 | K46: =J46*$K$9/12 -> 16.43194307
H47: May | I47: =IF($F$9="Monthly",$F$10,0) -> 83.25221793 | J47: =I47+J46 -> 2349.727124 | K47: 17.03552165
H48: Jun | I48: =IF($F$9="Monthly",$F$10,0) -> 83.25221793 | J48: =I48+J47 -> 2432.979342 | K48: 17.63910023
H49: Jul | I49: =IF(OR($F$9="Monthly",$F$9="Quarterly"),$F$10,0) -> 83.25221793 | J49: 2516.23156 | K49: 18.24267881
H50: Aug | I50: =IF($F$9="Monthly",$F$10,0) -> 83.25221793 | J50: 2599.483778 | K50: 18.84625739
H51: Sep | I51: =IF($F$9="Monthly",$F$10,0) -> 83.25221793 | J51: 2682.735996 | K51: 19.44983597
H52: Oct | I52: =IF($F$9<>"Annual",$F$10,0) -> 83.25221793 | J52: 2765.988214 | K52: 20.05341455
H53: Nov | I53: =IF($F$9="Monthly",$F$10,0) -> 83.25221793 | J53: 2849.240432 | K53: 20.65699313
H54: Dec | I54: =IF($F$9="Monthly",$F$10,0) -> 83.25221793 | J54: 2932.49265 | K54: 21.26057171
H55: Jan | I55: =IF(OR($F$9="Monthly",$F$9="Quarterly"),$F$10,0) -> 83.25221793 | J55: 3015.744868 | K55: 21.86415029
H56: Feb | I56: =IF($F$9="Monthly",$F$10,0) -> 83.25221793 | J56: 3098.997086 | K56: 22.46772887
H57: Mar | I57: =IF($F$9="Monthly",$F$10,0) -> 83.25221793 | J57: 3182.249304 | K57: 23.07130745
H58: Year End Balance | J58: =J57+SUM(K46:K57) -> 3419.268807
H60: Year 4
H61: Month | I61: Deposit | J61: Balance | K61: Interest
H62: Apr | I62: =$F$10 -> 83.25221793 | J62: =I62+J58 -> 3502.521025 | K62: =J62*$K$9/12 -> 25.39327743
H63: May | I63: =IF($F$9="Monthly",$F$10,0) -> 83.25221793 | J63: =I63+J62 -> 3585.773243 | K63: 25.99685601
H64: Jun | I64: =IF($F$9="Monthly",$F$10,0) -> 83.25221793 | J64: =I64+J63 -> 3669.025461 | K64: 26.60043459
H65: Jul | I65: =IF(OR($F$9="Monthly",$F$9="Quarterly"),$F$10,0) -> 83.25221793 | J65: 3752.277679 | K65: 27.20401317
H66: Aug | I66: =IF($F$9="Monthly",$F$10,0) -> 83.25221793 | J66: 3835.529897 | K66: 27.80759175
H67: Sep | I67: =IF($F$9="Monthly",$F$10,0) -> 83.25221793 | J67: 3918.782114 | K67: 28.41117033
H68: Oct | I68: =IF($F$9<>"Annual",$F$10,0) -> 83.25221793 | J68: 4002.034332 | K68: 29.01474891
H69: Nov | I69: =IF($F$9="Monthly",$F$10,0) -> 83.25221793 | J69: 4085.28655 | K69: 29.61832749
H70: Dec | I70: =IF($F$9="Monthly",$F$10,0) -> 83.25221793 | J70: 4168.538768 | K70: 30.22190607
H71: Jan | I71: =IF(OR($F$9="Monthly",$F$9="Quarterly"),$F$10,0) -> 83.25221793 | J71: 4251.790986 | K71: 30.82548465
H72: Feb | I72: =IF($F$9="Monthly",$F$10,0) -> 83.25221793 | J72: 4335.043204 | K72: 31.42906323
H73: Mar | I73: =IF($F$9="Monthly",$F$10,0) -> 83.25221793 | J73: 4418.295422 | K73: 32.03264181
H74: Year End Balance | J74: =J73+SUM(K62:K73) -> 4762.850937
H76: Year 5
H77: Month | I77: Deposit | J77: Balance | K77: Interest
H78: Apr | I78: =$F$10 -> 83.25221793 | J78: =I78+J74 -> 4846.103155 | K78: =J78*$K$9/12 -> 35.13424788
H79: May | I79: =IF($F$9="Monthly",$F$10,0) -> 83.25221793 | J79: =I79+J78 -> 4929.355373 | K79: 35.73782646
H80: Jun | I80: =IF($F$9="Monthly",$F$10,0) -> 83.25221793 | J80: =I80+J79 -> 5012.607591 | K80: 36.34140504
H81: Jul | I81: =IF(OR($F$9="Monthly",$F$9="Quarterly"),$F$10,0) -> 83.25221793 | J81: 5095.859809 | K81: 36.94498362
H82: Aug | I82: =IF($F$9="Monthly",$F$10,0) -> 83.25221793 | J82: 5179.112027 | K82: 37.5485622
H83: Sep | I83: =IF($F$9="Monthly",$F$10,0) -> 83.25221793 | J83: 5262.364245 | K83: 38.15214078
H84: Oct | I84: =IF($F$9<>"Annual",$F$10,0) -> 83.25221793 | J84: 5345.616463 | K84: 38.75571936
H85: Nov | I85: =IF($F$9="Monthly",$F$10,0) -> 83.25221793 | J85: 5428.868681 | K85: 39.35929794
H86: Dec | I86: =IF($F$9="Monthly",$F$10,0) -> 83.25221793 | J86: 5512.120899 | K86: 39.96287652
H87: Jan | I87: =IF(OR($F$9="Monthly",$F$9="Quarterly"),$F$10,0) -> 83.25221793 | J87: 5595.373117 | K87: 40.5664551
H88: Feb | I88: =IF($F$9="Monthly",$F$10,0) -> 83.25221793 | J88: 5678.625335 | K88: 41.17003368
H89: Mar | I89: =IF($F$9="Monthly",$F$10,0) -> 83.25221793 | J89: 5761.877553 | K89: 41.77361226
H90: Year End Balance | J90: =J89+SUM(K78:K89) -> 6223.324713
H92: Year 6
H93: Month | I93: Deposit | J93: Balance | K93: Interest
H94: Apr | I94: =$F$10 -> 83.25221793 | J94: =I94+J90 -> 6306.576931 | K94: =J94*$K$9/12 -> 45.72268275
H95: May | I95: =IF($F$9="Monthly",$F$10,0) -> 83.25221793 | J95: =I95+J94 -> 6389.829149 | K95: 46.32626133
H96: Jun | I96: =IF($F$9="Monthly",$F$10,0) -> 83.25221793 | J96: =I96+J95 -> 6473.081367 | K96: 46.92983991
H97: Jul | I97: =IF(OR($F$9="Monthly",$F$9="Quarterly"),$F$10,0) -> 83.25221793 | J97: 6556.333585 | K97: 47.53341849
H98: Aug | I98: =IF($F$9="Monthly",$F$10,0) -> 83.25221793 | J98: 6639.585803 | K98: 48.13699707
H99: Sep | I99: =IF($F$9="Monthly",$F$10,0) -> 83.25221793 | J99: 6722.838021 | K99: 48.74057565
H100: Oct | I100: =IF($F$9<>"Annual",$F$10,0) -> 83.25221793 | J100: 6806.090239 | K100: 49.34415423
H101: Nov | I101: =IF($F$9="Monthly",$F$10,0) -> 83.25221793 | J101: 6889.342457 | K101: 49.94773281
H102: Dec | I102: =IF($F$9="Monthly",$F$10,0) -> 83.25221793 | J102: 6972.594675 | K102: 50.55131139
H103: Jan | I103: =IF(OR($F$9="Monthly",$F$9="Quarterly"),$F$10,0) -> 83.25221793 | J103: 7055.846893 | K103: 51.15488997
H104: Feb | I104: =IF($F$9="Monthly",$F$10,0) -> 83.25221793 | J104: 7139.099111 | K104: 51.75846855
H105: Mar | I105: =IF($F$9="Monthly",$F$10,0) -> 83.25221793 | J105: 7222.351329 | K105: 52.36204713
H106: Year End Balance | J106: =J105+SUM(K94:K105) -> 7810.859708
H108: Year 7
H109: Month | I109: Deposit | J109: Balance | K109: Interest
H110: Apr | I110: =$F$10 -> 83.25221793 | J110: =I110+J106 -> 7894.111926 | K110: =J110*$K$9/12 -> 57.23231146
H111: May | I111: =IF($F$9="Monthly",$F$10,0) -> 83.25221793 | J111: =I111+J110 -> 7977.364144 | K111: 57.83589004
H112: Jun | I112: =IF($F$9="Monthly",$F$10,0) -> 83.25221793 | J112: =I112+J111 -> 8060.616362 | K112: 58.43946862
H113: Jul | I113: =IF(OR($F$9="Monthly",$F$9="Quarterly"),$F$10,0) -> 83.25221793 | J113: 8143.86858 | K113: 59.0430472
H114: Aug | I114: =IF($F$9="Monthly",$F$10,0) -> 83.25221793 | J114: 8227.120798 | K114: 59.64662578
H115: Sep | I115: =IF($F$9="Monthly",$F$10,0) -> 83.25221793 | J115: 8310.373016 | K115: 60.25020436
H116: Oct | I116: =IF($F$9<>"Annual",$F$10,0) -> 83.25221793 | J116: 8393.625233 | K116: 60.85378294
H117: Nov | I117: =IF($F$9="Monthly",$F$10,0) -> 83.25221793 | J117: 8476.877451 | K117: 61.45736152
H118: Dec | I118: =IF($F$9="Monthly",$F$10,0) -> 83.25221793 | J118: 8560.129669 | K118: 62.0609401
H119: Jan | I119: =IF(OR($F$9="Monthly",$F$9="Quarterly"),$F$10,0) -> 83.25221793 | J119: 8643.381887 | K119: 62.66451868
H120: Feb | I120: =IF($F$9="Monthly",$F$10,0) -> 83.25221793 | J120: 8726.634105 | K120: 63.26809726
H121: Mar | I121: =IF($F$9="Monthly",$F$10,0) -> 83.25221793 | J121: 8809.886323 | K121: 63.87167584
H122: Year End Balance | J122: =J121+SUM(K110:K121) -> 9536.510247
H124: Year 8
H125: Month | I125: Deposit | J125: Balance | K125: Interest
H126: Apr | I126: =$F$10 -> 83.25221793 | J126: =I126+J122 -> 9619.762465 | K126: =J126*$K$9/12 -> 69.74327787
H127: May | I127: =IF($F$9="Monthly",$F$10,0) -> 83.25221793 | J127: =I127+J126 -> 9703.014683 | K127: 70.34685645
H128: Jun | I128: =IF($F$9="Monthly",$F$10,0) -> 83.25221793 | J128: =I128+J127 -> 9786.266901 | K128: 70.95043503
H129: Jul | I129: =IF(OR($F$9="Monthly",$F$9="Quarterly"),$F$10,0) -> 83.25221793 | J129: 9869.519119 | K129: 71.55401361
H130: Aug | I130: =IF($F$9="Monthly",$F$10,0) -> 83.25221793 | J130: 9952.771337 | K130: 72.15759219
H131: Sep | I131: =IF($F$9="Monthly",$F$10,0) -> 83.25221793 | J131: 10036.02355 | K131: 72.76117077
H132: Oct | I132: =IF($F$9<>"Annual",$F$10,0) -> 83.25221793 | J132: 10119.27577 | K132: 73.36474935
H133: Nov | I133: =IF($F$9="Monthly",$F$10,0) -> 83.25221793 | J133: 10202.52799 | K133: 73.96832793
H134: Dec | I134: =IF($F$9="Monthly",$F$10,0) -> 83.25221793 | J134: 10285.78021 | K134: 74.57190651
H135: Jan | I135: =IF(OR($F$9="Monthly",$F$9="Quarterly"),$F$10,0) -> 83.25221793 | J135: 10369.03243 | K135: 75.17548509
H136: Feb | I136: =IF($F$9="Monthly",$F$10,0) -> 83.25221793 | J136: 10452.28464 | K136: 75.77906367
H137: Mar | I137: =IF($F$9="Monthly",$F$10,0) -> 83.25221793 | J137: 10535.53686 | K137: 76.38264225
H138: Year End Balance | J138: =J137+SUM(K126:K137) -> 11412.29238
H140: Year 9
H141: Month | I141: Deposit | J141: Balance | K141: Interest
H142: Apr | I142: =$F$10 -> 83.25221793 | J142: =I142+J138 -> 11495.5446 | K142: =J142*$K$9/12 -> 83.34269836
H143: May | I143: =IF($F$9="Monthly",$F$10,0) -> 83.25221793 | J143: =I143+J142 -> 11578.79682 | K143: 83.94627694
H144: Jun | I144: =IF($F$9="Monthly",$F$10,0) -> 83.25221793 | J144: =I144+J143 -> 11662.04904 | K144: 84.54985552
H145: Jul | I145: =IF(OR($F$9="Monthly",$F$9="Quarterly"),$F$10,0) -> 83.25221793 | J145: 11745.30125 | K145: 85.1534341
H146: Aug | I146: =IF($F$9="Monthly",$F$10,0) -> 83.25221793 | J146: 11828.55347 | K146: 85.75701268
H147: Sep | I147: =IF($F$9="Monthly",$F$10,0) -> 83.25221793 | J147: 11911.80569 | K147: 86.36059126
H148: Oct | I148: =IF($F$9<>"Annual",$F$10,0) -> 83.25221793 | J148: 11995.05791 | K148: 86.96416984
H149: Nov | I149: =IF($F$9="Monthly",$F$10,0) -> 83.25221793 | J149: 12078.31013 | K149: 87.56774842
H150: Dec | I150: =IF($F$9="Monthly",$F$10,0) -> 83.25221793 | J150: 12161.56234 | K150: 88.171327
H151: Jan | I151: =IF(OR($F$9="Monthly",$F$9="Quarterly"),$F$10,0) -> 83.25221793 | J151: 12244.81456 | K151: 88.77490558
H152: Feb | I152: =IF($F$9="Monthly",$F$10,0) -> 83.25221793 | J152: 12328.06678 | K152: 89.37848416
H153: Mar | I153: =IF($F$9="Monthly",$F$10,0) -> 83.25221793 | J153: 12411.319 | K153: 89.98206274
H154: Year End Balance | J154: =J153+SUM(K142:K153) -> 13451.26756
H156: Year 10
H157: Month | I157: Deposit | J157: Balance | K157: Interest
H158: Apr | I158: =$F$10 -> 83.25221793 | J158: =I158+J154 -> 13534.51978 | K158: =J158*$K$9/12 -> 98.12526842
H159: May | I159: =IF($F$9="Monthly",$F$10,0) -> 83.25221793 | J159: =I159+J158 -> 13617.772 | K159: 98.728847
H160: Jun | I160: =IF($F$9="Monthly",$F$10,0) -> 83.25221793 | J160: =I160+J159 -> 13701.02422 | K160: 99.33242558
H161: Jul | I161: =IF(OR($F$9="Monthly",$F$9="Quarterly"),$F$10,0) -> 83.25221793 | J161: 13784.27644 | K161: 99.93600416
H162: Aug | I162: =IF($F$9="Monthly",$F$10,0) -> 83.25221793 | J162: 13867.52865 | K162: 100.5395827
H163: Sep | I163: =IF($F$9="Monthly",$F$10,0) -> 83.25221793 | J163: 13950.78087 | K163: 101.1431613
H164: Oct | I164: =IF($F$9<>"Annual",$F$10,0) -> 83.25221793 | J164: 14034.03309 | K164: 101.7467399
H165: Nov | I165: =IF($F$9="Monthly",$F$10,0) -> 83.25221793 | J165: 14117.28531 | K165: 102.3503185
H166: Dec | I166: =IF($F$9="Monthly",$F$10,0) -> 83.25221793 | J166: 14200.53753 | K166: 102.9538971
H167: Jan | I167: =IF(OR($F$9="Monthly",$F$9="Quarterly"),$F$10,0) -> 83.25221793 | J167: 14283.78974 | K167: 103.5574756
H168: Feb | I168: =IF($F$9="Monthly",$F$10,0) -> 83.25221793 | J168: 14367.04196 | K168: 104.1610542
H169: Mar | I169: =IF($F$9="Monthly",$F$10,0) -> 83.25221793 | J169: 14450.29418 | K169: 104.7646328
H170: Year End Balance | J170: =J169+SUM(K158:K169) -> 15667.63359
H172: Year 11
H173: Month | I173: Deposit | J173: Balance | K173: Interest
H174: Apr | I174: =$F$10 -> 83.25221793 | J174: =I174+J170 -> 15750.88581 | K174: =J174*$K$9/12 -> 114.1939221
H175: May | I175: =IF($F$9="Monthly",$F$10,0) -> 83.25221793 | J175: =I175+J174 -> 15834.13802 | K175: 114.7975007
H176: Jun | I176: =IF($F$9="Monthly",$F$10,0) -> 83.25221793 | J176: =I176+J175 -> 15917.39024 | K176: 115.4010792
H177: Jul | I177: =IF(OR($F$9="Monthly",$F$9="Quarterly"),$F$10,0) -> 83.25221793 | J177: 16000.64246 | K177: 116.0046578
H178: Aug | I178: =IF($F$9="Monthly",$F$10,0) -> 83.25221793 | J178: 16083.89468 | K178: 116.6082364
H179: Sep | I179: =IF($F$9="Monthly",$F$10,0) -> 83.25221793 | J179: 16167.14689 | K179: 117.211815
H180: Oct | I180: =IF($F$9<>"Annual",$F$10,0) -> 83.25221793 | J180: 16250.39911 | K180: 117.8153936
H181: Nov | I181: =IF($F$9="Monthly",$F$10,0) -> 83.25221793 | J181: 16333.65133 | K181: 118.4189721
H182: Dec | I182: =IF($F$9="Monthly",$F$10,0) -> 83.25221793 | J182: 16416.90355 | K182: 119.0225507
H183: Jan | I183: =IF(OR($F$9="Monthly",$F$9="Quarterly"),$F$10,0) -> 83.25221793 | J183: 16500.15577 | K183: 119.6261293
H184: Feb | I184: =IF($F$9="Monthly",$F$10,0) -> 83.25221793 | J184: 16583.40798 | K184: 120.2297079
H185: Mar | I185: =IF($F$9="Monthly",$F$10,0) -> 83.25221793 | J185: 16666.6602 | K185: 120.8332865
H186: Year End Balance | J186: =J185+SUM(K174:K185) -> 18076.82345
H188: Year 12
H189: Month | I189: Deposit | J189: Balance | K189: Interest
H190: Apr | I190: =$F$10 -> 83.25221793 | J190: =I190+J186 -> 18160.07567 | K190: =J190*$K$9/12 -> 131.6605486
H191: May | I191: =IF($F$9="Monthly",$F$10,0) -> 83.25221793 | J191: =I191+J190 -> 18243.32789 | K191: 132.2641272
H192: Jun | I192: =IF($F$9="Monthly",$F$10,0) -> 83.25221793 | J192: =I192+J191 -> 18326.58011 | K192: 132.8677058
H193: Jul | I193: =IF(OR($F$9="Monthly",$F$9="Quarterly"),$F$10,0) -> 83.25221793 | J193: 18409.83233 | K193: 133.4712844
H194: Aug | I194: =IF($F$9="Monthly",$F$10,0) -> 83.25221793 | J194: 18493.08454 | K194: 134.0748629
H195: Sep | I195: =IF($F$9="Monthly",$F$10,0) -> 83.25221793 | J195: 18576.33676 | K195: 134.6784415
H196: Oct | I196: =IF($F$9<>"Annual",$F$10,0) -> 83.25221793 | J196: 18659.58898 | K196: 135.2820201
H197: Nov | I197: =IF($F$9="Monthly",$F$10,0) -> 83.25221793 | J197: 18742.8412 | K197: 135.8855987
H198: Dec | I198: =IF($F$9="Monthly",$F$10,0) -> 83.25221793 | J198: 18826.09341 | K198: 136.4891773
H199: Jan | I199: =IF(OR($F$9="Monthly",$F$9="Quarterly"),$F$10,0) -> 83.25221793 | J199: 18909.34563 | K199: 137.0927558
H200: Feb | I200: =IF($F$9="Monthly",$F$10,0) -> 83.25221793 | J200: 18992.59785 | K200: 137.6963344
H201: Mar | I201: =IF($F$9="Monthly",$F$10,0) -> 83.25221793 | J201: 19075.85007 | K201: 138.299913
H202: Year End Balance | J202: =J201+SUM(K190:K201) -> 20695.61284
H204: Year 13
H205: Month | I205: Deposit | J205: Balance | K205: Interest
H206: Apr | I206: =$F$10 -> 83.25221793 | J206: =I206+J202 -> 20778.86506 | K206: =J206*$K$9/12 -> 150.6467717
H207: May | I207: =IF($F$9="Monthly",$F$10,0) -> 83.25221793 | J207: =I207+J206 -> 20862.11727 | K207: 151.2503502
H208: Jun | I208: =IF($F$9="Monthly",$F$10,0) -> 83.25221793 | J208: =I208+J207 -> 20945.36949 | K208: 151.8539288
H209: Jul | I209: =IF(OR($F$9="Monthly",$F$9="Quarterly"),$F$10,0) -> 83.25221793 | J209: 21028.62171 | K209: 152.4575074
H210: Aug | I210: =IF($F$9="Monthly",$F$10,0) -> 83.25221793 | J210: 21111.87393 | K210: 153.061086
H211: Sep | I211: =IF($F$9="Monthly",$F$10,0) -> 83.25221793 | J211: 21195.12615 | K211: 153.6646646
H212: Oct | I212: =IF($F$9<>"Annual",$F$10,0) -> 83.25221793 | J212: 21278.37836 | K212: 154.2682431
H213: Nov | I213: =IF($F$9="Monthly",$F$10,0) -> 83.25221793 | J213: 21361.63058 | K213: 154.8718217
H214: Dec | I214: =IF($F$9="Monthly",$F$10,0) -> 83.25221793 | J214: 21444.8828 | K214: 155.4754003
H215: Jan | I215: =IF(OR($F$9="Monthly",$F$9="Quarterly"),$F$10,0) -> 83.25221793 | J215: 21528.13502 | K215: 156.0789789
H216: Feb | I216: =IF($F$9="Monthly",$F$10,0) -> 83.25221793 | J216: 21611.38724 | K216: 156.6825575
H217: Mar | I217: =IF($F$9="Monthly",$F$10,0) -> 83.25221793 | J217: 21694.63945 | K217: 157.286136
... 31 more rows

Sheet Goal Calculator
A1: Goal Calculator | L1: ='PPF Calculator'!F9 -> Monthly | N1: Monthly | O1: 12
A2: Determine the fixed investment need to obtain a certina maturity value | L2: =INDEX(N1:O4,MATCH(L1,N1:N4,0),2) -> 12 | N2: Quarterly | O2: 4
N3: Half-yearly | O3: 2
A4: Step 1 | B4: Enter maturity value required | E4: 30000 | F4: Enter current investment limit | I4: 150000 | N4: Annual | O4: 1
A6: Step 2 | B6: Go to PPF Calculator sheet. Select investment frequency and the interest rate
A8: Step 3
A11: Fixed investment amount for the selected is | F11: 83.25221793
A12: =IF(F11*L2>I4, "Answer is above investment limit. Choose lower maturity value and repeat step 3","") -> 

Sheet PPF Tracker
AD1: before 5th
D2: PPF Tracker | AD2: after 5th
E5: Enter data only in green cells
J8: Balance on March 31st of current year
J9: Set as zero for new accounts
E12: * For existing account, "Year 1" | J12: Year 1*
E13: simply refers to first year of tracking | G13: Interest rate | H13: Deposited | J13: Month | K13: Deposit | L13: Balance | M13: Interest
G14: 0.087 | H14: before 5th | J14: Apr | K14: 5000 | L14: =$M$9+IF(H14="before 5th",K14,0) -> 5000 | M14: =L14*G14/12 -> 36.25
G15: 0.087 | H15: before 5th | J15: May | K15: 5000 | L15: =SUM($K$14:K14)+$M$9+IF(H15="before 5th",K15,0) -> 10000 | M15: =L15*G15/12 -> 72.5 | P15: PPF investment limit
G16: 0.087 | H16: before 5th | J16: Jun | K16: 5000 | L16: =SUM($K$14:K15)+$M$9+IF(H16="before 5th",K16,0) -> 15000 | M16: 108.75 | P16: 150000
G17: 0.087 | H17: before 5th | J17: Jul | K17: 5000 | L17: =SUM($K$14:K16)+$M$9+IF(H17="before 5th",K17,0) -> 20000 | M17: 145 | P17: =IF(SUM(K14:K25)>P16,"Warning: total investment exceeds allowed limit","") -> 
G18: 0.087 | H18: before 5th | J18: Aug | K18: 5000 | L18: =SUM($K$14:K17)+$M$9+IF(H18="before 5th",K18,0) -> 25000 | M18: 181.25
G19: 0.087 | H19: before 5th | J19: Sep | K19: 5000 | L19: =SUM($K$14:K18)+$M$9+IF(H19="before 5th",K19,0) -> 30000 | M19: 217.5
G20: 0.087 | H20: before 5th | J20: Oct | K20: 5000 | L20: =SUM($K$14:K19)+$M$9+IF(H20="before 5th",K20,0) -> 35000 | M20: 253.75
G21: 0.087 | H21: before 5th | J21: Nov | K21: 5000 | L21: =SUM($K$14:K20)+$M$9+IF(H21="before 5th",K21,0) -> 40000 | M21: 290
G22: 0.087 | H22: before 5th | J22: Dec | K22: 5000 | L22: =SUM($K$14:K21)+$M$9+IF(H22="before 5th",K22,0) -> 45000 | M22: 326.25
G23: 0.087 | H23: before 5th | J23: Jan | K23: 5000 | L23: =SUM($K$14:K22)+$M$9+IF(H23="before 5th",K23,0) -> 50000 | M23: 362.5
G24: 0.087 | H24: before 5th | J24: Feb | K24: 5000 | L24: =SUM($K$14:K23)+$M$9+IF(H24="before 5th",K24,0) -> 55000 | M24: 398.75
G25: 0.087 | H25: before 5th | J25: Mar | K25: 5000 | L25: =SUM($K$14:K24)+$M$9+IF(H25="before 5th",K25,0) -> 60000 | M25: 435
J26: Year End Balance | L26: =SUM(K14:K25)+SUM(M14:M25)+M9 -> 62827.5
J28: Year 2
G29: Interest rate | H29: Deposited | J29: Month | K29: Deposit | L29: Balance | M29: Interest
G30: 0.087 | H30: before 5th | J30: Apr | L30: =$L$26+IF(H30="before 5th",K30,0) -> 62827.5 | M30: =L30*G30/12 -> 455.499375
G31: 0.087 | H31: before 5th | J31: May | L31: =SUM($K$30:K30)+$L$26+IF(H31="before 5th",K31,0) -> 62827.5 | M31: =L31*G31/12 -> 455.499375 | P31: PPF investment limit
G32: 0.087 | H32: before 5th | J32: Jun | L32: =SUM($K$30:K31)+$L$26+IF(H32="before 5th",K32,0) -> 62827.5 | M32: 455.499375 | P32: 150000
G33: 0.087 | H33: before 5th | J33: Jul | L33: =SUM($K$30:K32)+$L$26+IF(H33="before 5th",K33,0) -> 62827.5 | M33: 455.499375 | P33: =IF(SUM(K30:K41)>P32,"Warning: total investment exceeds allowed limit","") -> 
G34: 0.087 | H34: before 5th | J34: Aug | L34: =SUM($K$30:K33)+$L$26+IF(H34="before 5th",K34,0) -> 62827.5 | M34: 455.499375
G35: 0.087 | H35: before 5th | J35: Sep | L35: =SUM($K$30:K34)+$L$26+IF(H35="before 5th",K35,0) -> 62827.5 | M35: 455.499375
G36: 0.087 | H36: before 5th | J36: Oct | L36: =SUM($K$30:K35)+$L$26+IF(H36="before 5th",K36,0) -> 62827.5 | M36: 455.499375
G37: 0.087 | H37: before 5th | J37: Nov | L37: =SUM($K$30:K36)+$L$26+IF(H37="before 5th",K37,0) -> 62827.5 | M37: 455.499375
G38: 0.087 | H38: before 5th | J38: Dec | L38: =SUM($K$30:K37)+$L$26+IF(H38="before 5th",K38,0) -> 62827.5 | M38: 455.499375
G39: 0.087 | H39: before 5th | J39: Jan | L39: =SUM($K$30:K38)+$L$26+IF(H39="before 5th",K39,0) -> 62827.5 | M39: 455.499375
G40: 0.087 | H40: before 5th | J40: Feb | L40: =SUM($K$30:K39)+$L$26+IF(H40="before 5th",K40,0) -> 62827.5 | M40: 455.499375
G41: 0.087 | H41: before 5th | J41: Mar | L41: =SUM($K$30:K40)+$L$26+IF(H41="before 5th",K41,0) -> 62827.5 | M41: 455.499375
J42: Year End Balance | L42: =SUM(K30:K41)+SUM(M30:M41)+L26 -> 68293.4925
D44: =IF($M$9=0,"Loan available for new accounts","") -> Loan available for new accounts | J44: Year 3
D45: =IF($M$9=0,"Loan amount available","") -> Loan amount available | F45: =IF($M$9=0,25%*L26,"") -> 15706.875 | G45: Interest rate | H45: Deposited | J45: Month | K45: Deposit | L45: Balance | M45: Interest
G46: 0.087 | H46: before 5th | J46: Apr | L46: =$L$42+IF(H46="before 5th",K46,0) -> 68293.4925 | M46: =L46*G46/12 -> 495.1278206
G47: 0.087 | H47: before 5th | J47: May | L47: =SUM($K$46:K46)+$L$42+IF(H47="before 5th",K47,0) -> 68293.4925 | M47: =L47*G47/12 -> 495.1278206 | P47: PPF investment limit
G48: 0.087 | H48: before 5th | J48: Jun | L48: =SUM($K$46:K47)+$L$42+IF(H48="before 5th",K48,0) -> 68293.4925 | M48: 495.1278206 | P48: 150000
G49: 0.087 | H49: before 5th | J49: Jul | L49: =SUM($K$46:K48)+$L$42+IF(H49="before 5th",K49,0) -> 68293.4925 | M49: 495.1278206 | P49: =IF(SUM(K46:K57)>P48,"Warning: total investment exceeds allowed limit","") -> 
G50: 0.087 | H50: before 5th | J50: Aug | L50: =SUM($K$46:K49)+$L$42+IF(H50="before 5th",K50,0) -> 68293.4925 | M50: 495.1278206
G51: 0.087 | H51: before 5th | J51: Sep | L51: =SUM($K$46:K50)+$L$42+IF(H51="before 5th",K51,0) -> 68293.4925 | M51: 495.1278206
G52: 0.087 | H52: before 5th | J52: Oct | L52: =SUM($K$46:K51)+$L$42+IF(H52="before 5th",K52,0) -> 68293.4925 | M52: 495.1278206
G53: 0.087 | H53: before 5th | J53: Nov | L53: =SUM($K$46:K52)+$L$42+IF(H53="before 5th",K53,0) -> 68293.4925 | M53: 495.1278206
G54: 0.087 | H54: before 5th | J54: Dec | L54: =SUM($K$46:K53)+$L$42+IF(H54="before 5th",K54,0) -> 68293.4925 | M54: 495.1278206
G55: 0.087 | H55: before 5th | J55: Jan | L55: =SUM($K$46:K54)+$L$42+IF(H55="before 5th",K55,0) -> 68293.4925 | M55: 495.1278206
G56: 0.087 | H56: before 5th | J56: Feb | L56: =SUM($K$46:K55)+$L$42+IF(H56="before 5th",K56,0) -> 68293.4925 | M56: 495.1278206
G57: 0.087 | H57: before 5th | J57: Mar | L57: =SUM($K$46:K56)+$L$42+IF(H57="before 5th",K57,0) -> 68293.4925 | M57: 495.1278206
J58: Year End Balance | L58: =SUM(K46:K57)+SUM(M46:M57)+L42 -> 74235.02635
D60: =IF($M$9=0,"Loan available for new accounts","") -> Loan available for new accounts | J60: Year 4
D61: =IF($M$9=0,"Loan amount available","") -> Loan amount available | F61: =IF($M$9=0,25%*L42,"") -> 17073.37312 | G61: Interest rate | H61: Deposited | J61: Month | K61: Deposit | L61: Balance | M61: Interest
G62: 0.087 | H62: before 5th | J62: Apr | L62: =$L$58+IF(H62="before 5th",K62,0) -> 74235.02635 | M62: =L62*G62/12 -> 538.203941
G63: 0.087 | H63: before 5th | J63: May | L63: =SUM($K$62:K62)+$L$58+IF(H63="before 5th",K63,0) -> 74235.02635 | M63: =L63*G63/12 -> 538.203941 | P63: PPF investment limit
G64: 0.087 | H64: before 5th | J64: Jun | L64: =SUM($K$62:K63)+$L$58+IF(H64="before 5th",K64,0) -> 74235.02635 | M64: 538.203941 | P64: 150000
G65: 0.087 | H65: before 5th | J65: Jul | L65: =SUM($K$62:K64)+$L$58+IF(H65="before 5th",K65,0) -> 74235.02635 | M65: 538.203941 | P65: =IF(SUM(K62:K73)>P64,"Warning: total investment exceeds allowed limit","") -> 
G66: 0.087 | H66: before 5th | J66: Aug | L66: =SUM($K$62:K65)+$L$58+IF(H66="before 5th",K66,0) -> 74235.02635 | M66: 538.203941
G67: 0.087 | H67: before 5th | J67: Sep | L67: =SUM($K$62:K66)+$L$58+IF(H67="before 5th",K67,0) -> 74235.02635 | M67: 538.203941
G68: 0.087 | H68: before 5th | J68: Oct | L68: =SUM($K$62:K67)+$L$58+IF(H68="before 5th",K68,0) -> 74235.02635 | M68: 538.203941
G69: 0.087 | H69: before 5th | J69: Nov | L69: =SUM($K$62:K68)+$L$58+IF(H69="before 5th",K69,0) -> 74235.02635 | M69: 538.203941
G70: 0.087 | H70: before 5th | J70: Dec | L70: =SUM($K$62:K69)+$L$58+IF(H70="before 5th",K70,0) -> 74235.02635 | M70: 538.203941
G71: 0.087 | H71: before 5th | J71: Jan | L71: =SUM($K$62:K70)+$L$58+IF(H71="before 5th",K71,0) -> 74235.02635 | M71: 538.203941
G72: 0.087 | H72: before 5th | J72: Feb | L72: =SUM($K$62:K71)+$L$58+IF(H72="before 5th",K72,0) -> 74235.02635 | M72: 538.203941
G73: 0.087 | H73: before 5th | J73: Mar | L73: =SUM($K$62:K72)+$L$58+IF(H73="before 5th",K73,0) -> 74235.02635 | M73: 538.203941
J74: Year End Balance | L74: =SUM(K62:K73)+SUM(M62:M73)+L58 -> 80693.47364
D76: =IF($M$9=0,"Loan available for new accounts","") -> Loan available for new accounts | J76: Year 5
D77: =IF($M$9=0,"Loan amount available","") -> Loan amount available | F77: =IF($M$9=0,25%*L58,"") -> 18558.75659 | G77: Interest rate | H77: Deposited | J77: Month | K77: Deposit | L77: Balance | M77: Interest
G78: 0.087 | H78: before 5th | J78: Apr | L78: =$L$74+IF(H78="before 5th",K78,0) -> 80693.47364 | M78: =L78*G78/12 -> 585.0276839
G79: 0.087 | H79: before 5th | J79: May | L79: =SUM($K$78:K78)+$L$74+IF(H79="before 5th",K79,0) -> 80693.47364 | M79: =L79*G79/12 -> 585.0276839 | P79: PPF investment limit
G80: 0.087 | H80: before 5th | J80: Jun | L80: =SUM($K$78:K79)+$L$74+IF(H80="before 5th",K80,0) -> 80693.47364 | M80: 585.0276839 | P80: 150000
G81: 0.087 | H81: before 5th | J81: Jul | L81: =SUM($K$78:K80)+$L$74+IF(H81="before 5th",K81,0) -> 80693.47364 | M81: 585.0276839 | P81: =IF(SUM(K78:K89)>P80,"Warning: total investment exceeds allowed limit","") -> 
G82: 0.087 | H82: before 5th | J82: Aug | L82: =SUM($K$78:K81)+$L$74+IF(H82="before 5th",K82,0) -> 80693.47364 | M82: 585.0276839
G83: 0.087 | H83: before 5th | J83: Sep | L83: =SUM($K$78:K82)+$L$74+IF(H83="before 5th",K83,0) -> 80693.47364 | M83: 585.0276839
G84: 0.087 | H84: before 5th | J84: Oct | L84: =SUM($K$78:K83)+$L$74+IF(H84="before 5th",K84,0) -> 80693.47364 | M84: 585.0276839
G85: 0.087 | H85: before 5th | J85: Nov | L85: =SUM($K$78:K84)+$L$74+IF(H85="before 5th",K85,0) -> 80693.47364 | M85: 585.0276839
G86: 0.087 | H86: before 5th | J86: Dec | L86: =SUM($K$78:K85)+$L$74+IF(H86="before 5th",K86,0) -> 80693.47364 | M86: 585.0276839
G87: 0.087 | H87: before 5th | J87: Jan | L87: =SUM($K$78:K86)+$L$74+IF(H87="before 5th",K87,0) -> 80693.47364 | M87: 585.0276839
G88: 0.087 | H88: before 5th | J88: Feb | L88: =SUM($K$78:K87)+$L$74+IF(H88="before 5th",K88,0) -> 80693.47364 | M88: 585.0276839
G89: 0.087 | H89: before 5th | J89: Mar | L89: =SUM($K$78:K88)+$L$74+IF(H89="before 5th",K89,0) -> 80693.47364 | M89: 585.0276839
J90: Year End Balance | L90: =SUM(K78:K89)+SUM(M78:M89)+L74 -> 87713.80585
D92: =IF($M$9=0,"Loan available for new accounts","") -> Loan available for new accounts | J92: Year 6
D93: =IF($M$9=0,"Loan amount available","") -> Loan amount available | F93: =IF($M$9=0,25%*L74,"") -> 20173.36841 | G93: Interest rate | H93: Deposited | J93: Month | K93: Deposit | L93: Balance | M93: Interest
G94: 0.087 | H94: before 5th | J94: Apr | L94: =$L$90+IF(H94="before 5th",K94,0) -> 87713.80585 | M94: =L94*G94/12 -> 635.9250924
G95: 0.087 | H95: before 5th | J95: May | L95: =SUM($K$94:K94)+$L$90+IF(H95="before 5th",K95,0) -> 87713.80585 | M95: =L95*G95/12 -> 635.9250924 | P95: PPF investment limit
G96: 0.087 | H96: before 5th | J96: Jun | L96: =SUM($K$94:K95)+$L$90+IF(H96="before 5th",K96,0) -> 87713.80585 | M96: 635.9250924 | P96: 150000
G97: 0.087 | H97: before 5th | J97: Jul | L97: =SUM($K$94:K96)+$L$90+IF(H97="before 5th",K97,0) -> 87713.80585 | M97: 635.9250924 | P97: =IF(SUM(K94:K105)>P96,"Warning: total investment exceeds allowed limit","") -> 
G98: 0.087 | H98: before 5th | J98: Aug | L98: =SUM($K$94:K97)+$L$90+IF(H98="before 5th",K98,0) -> 87713.80585 | M98: 635.9250924
G99: 0.087 | H99: before 5th | J99: Sep | L99: =SUM($K$94:K98)+$L$90+IF(H99="before 5th",K99,0) -> 87713.80585 | M99: 635.9250924
G100: 0.087 | H100: before 5th | J100: Oct | L100: =SUM($K$94:K99)+$L$90+IF(H100="before 5th",K100,0) -> 87713.80585 | M100: 635.9250924
G101: 0.087 | H101: before 5th | J101: Nov | L101: =SUM($K$94:K100)+$L$90+IF(H101="before 5th",K101,0) -> 87713.80585 | M101: 635.9250924
G102: 0.087 | H102: before 5th | J102: Dec | L102: =SUM($K$94:K101)+$L$90+IF(H102="before 5th",K102,0) -> 87713.80585 | M102: 635.9250924
G103: 0.087 | H103: before 5th | J103: Jan | L103: =SUM($K$94:K102)+$L$90+IF(H103="before 5th",K103,0) -> 87713.80585 | M103: 635.9250924
G104: 0.087 | H104: before 5th | J104: Feb | L104: =SUM($K$94:K103)+$L$90+IF(H104="before 5th",K104,0) -> 87713.80585 | M104: 635.9250924
G105: 0.087 | H105: before 5th | J105: Mar | L105: =SUM($K$94:K104)+$L$90+IF(H105="before 5th",K105,0) -> 87713.80585 | M105: 635.9250924
J106: Year End Balance | L106: =SUM(K94:K105)+SUM(M94:M105)+L90 -> 95344.90696
J108: Year 7 | O108: Withdrawal can be made only once in a year
G109: Interest rate | H109: Deposited | J109: Month | K109: Deposit | L109: Balance | M109: Interest | O109: Withdrawal
G110: 0.087 | H110: before 5th | J110: Apr | L110: =$L$106+IF(H110="before 5th",K110,0) -> 95344.90696 | M110: =L110*G110/12 -> 691.2505754 | N110: =IF(O110=MAX($O$110:$O$121),O110,IF(N109=MAX($O$110:$O$121),N109,0)) -> 0
D111: =IF($M$9=0,"Withdrawal limit","") -> Withdrawal limit | F111: =IF($M$9=0,50%*MIN(L106,L58),"") -> 37117.51317 | G111: 0.087 | H111: before 5th | J111: May | L111: =SUM($K$110:K110)+$L$106+IF(H111="before 5th",K111,0) -> 95344.90696 | M111: =L111*G111/12 -> 691.2505754 | N111: 0 | P111: PPF investment limit
G112: 0.087 | H112: before 5th | J112: Jun | L112: =SUM($K$110:K111)+$L$106+IF(H112="before 5th",K112,0) -> 95344.90696 | M112: 691.2505754 | N112: 0 | P112: 150000
G113: 0.087 | H113: before 5th | J113: Jul | L113: =SUM($K$110:K112)+$L$106+IF(H113="before 5th",K113,0) -> 95344.90696 | M113: 691.2505754 | N113: 0 | P113: =IF(SUM(K110:K121)>P112,"Warning: total investment exceeds allowed limit","") -> 
G114: 0.087 | H114: before 5th | J114: Aug | L114: =SUM($K$110:K113)+$L$106+IF(H114="before 5th",K114,0) -> 95344.90696 | M114: 691.2505754 | N114: 0
G115: 0.087 | H115: before 5th | J115: Sep | L115: =SUM($K$110:K114)+$L$106+IF(H115="before 5th",K115,0) -> 95344.90696 | M115: 691.2505754 | N115: 0 | P115: =IF(N122>F111,"Withdrawal is above limit","") -> 
G116: 0.087 | H116: before 5th | J116: Oct | L116: =SUM($K$110:K115)+$L$106+IF(H116="before 5th",K116,0) -> 95344.90696 | M116: 691.2505754 | N116: =IF(O116=MAX($O$110:$O$121),O116,IF(N115=MAX($O$110:$O$121),N115,0)) -> 0
G117: 0.087 | H117: before 5th | J117: Nov | L117: =SUM($K$110:K116)+$L$106+IF(H117="before 5th",K117,0) -> 95344.90696 | M117: 691.2505754 | N117: 0
G118: 0.087 | H118: before 5th | J118: Dec | L118: =SUM($K$110:K117)+$L$106+IF(H118="before 5th",K118,0) -> 95344.90696 | M118: 691.2505754 | N118: 0
G119: 0.087 | H119: before 5th | J119: Jan | L119: =SUM($K$110:K118)+$L$106+IF(H119="before 5th",K119,0) -> 95344.90696 | M119: 691.2505754 | N119: 0
G120: 0.087 | H120: before 5th | J120: Feb | L120: =SUM($K$110:K119)+$L$106+IF(H120="before 5th",K120,0) -> 95344.90696 | M120: 691.2505754 | N120: 0
G121: 0.087 | H121: before 5th | J121: Mar | L121: =SUM($K$110:K120)+$L$106+IF(H121="before 5th",K121,0) -> 95344.90696 | M121: 691.2505754 | N121: 0
J122: Year End Balance | L122: =SUM(K110:K121)+SUM(M110:M121)+L106-N122 -> 103639.9139 | N122: =MAX(O110:O121) -> 0
J124: Year 8 | O124: Withdrawal can be made only once in a year
G125: Interest rate | H125: Deposited | J125: Month | K125: Deposit | L125: Balance | M125: Interest | O125: Withdrawal
G126: 0.087 | H126: before 5th | J126: Apr | L126: =$L$122+IF(H126="before 5th",K126,0) -> 103639.9139 | M126: =L126*G126/12 -> 751.3893755 | N126: =IF(O126=MAX($O$126:$O$137),O126,IF(N125=MAX($O$126:$O$137),N125,0)) -> 0
D127: =IF($M$9=0,"Withdrawal limit","") -> Withdrawal limit | F127: =IF($M$9=0,50%*MIN(L122,L74),"") -> 40346.73682 | G127: 0.087 | H127: before 5th | J127: May | L127: =SUM($K$126:K126)+$L$122+IF(H127="before 5th",K127,0) -> 103639.9139 | M127: =L127*G127/12 -> 751.3893755 | N127: =IF(O127=MAX($O$126:$O$137),O127,IF(N126=MAX($O$126:$O$137),N126,0)) -> 0 | P127: PPF investment limit
G128: 0.087 | H128: before 5th | J128: Jun | L128: =SUM($K$126:K127)+$L$122+IF(H128="before 5th",K128,0) -> 103639.9139 | M128: 751.3893755 | N128: 0 | P128: 150000
G129: 0.087 | H129: before 5th | J129: Jul | L129: =SUM($K$126:K128)+$L$122+IF(H129="before 5th",K129,0) -> 103639.9139 | M129: 751.3893755 | N129: 0 | P129: =IF(SUM(K126:K137)>P128,"Warning: total investment exceeds allowed limit","") -> 
G130: 0.087 | H130: before 5th | J130: Aug | L130: =SUM($K$126:K129)+$L$122+IF(H130="before 5th",K130,0) -> 103639.9139 | M130: 751.3893755 | N130: 0
G131: 0.087 | H131: before 5th | J131: Sep | L131: =SUM($K$126:K130)+$L$122+IF(H131="before 5th",K131,0) -> 103639.9139 | M131: 751.3893755 | N131: 0 | P131: =IF(N138>F127,"Withdrawal is above limit","") -> 
G132: 0.087 | H132: before 5th | J132: Oct | L132: =SUM($K$126:K131)+$L$122+IF(H132="before 5th",K132,0) -> 103639.9139 | M132: 751.3893755 | N132: 0
G133: 0.087 | H133: before 5th | J133: Nov | L133: =SUM($K$126:K132)+$L$122+IF(H133="before 5th",K133,0) -> 103639.9139 | M133: 751.3893755 | N133: 0
G134: 0.087 | H134: before 5th | J134: Dec | L134: =SUM($K$126:K133)+$L$122+IF(H134="before 5th",K134,0) -> 103639.9139 | M134: 751.3893755 | N134: 0
G135: 0.087 | H135: before 5th | J135: Jan | L135: =SUM($K$126:K134)+$L$122+IF(H135="before 5th",K135,0) -> 103639.9139 | M135: 751.3893755 | N135: 0
G136: 0.087 | H136: before 5th | J136: Feb | L136: =SUM($K$126:K135)+$L$122+IF(H136="before 5th",K136,0) -> 103639.9139 | M136: 751.3893755 | N136: 0
G137: 0.087 | H137: before 5th | J137: Mar | L137: =SUM($K$126:K136)+$L$122+IF(H137="before 5th",K137,0) -> 103639.9139 | M137: 751.3893755 | N137: 0
J138: Year End Balance | L138: =SUM(K126:K137)+SUM(M126:M137)+L122-N138 -> 112656.5864 | N138: =MAX(O126:O137) -> 0
J140: Year 9 | O140: Withdrawal can be made only once in a year
G141: Interest rate | H141: Deposited | J141: Month | K141: Deposit | L141: Balance | M141: Interest | O141: Withdrawal
G142: 0.087 | H142: before 5th | J142: Apr | L142: =$L$138+IF(H142="before 5th",K142,0) -> 112656.5864 | M142: =L142*G142/12 -> 816.7602512 | N142: =IF(O142=MAX($O$142:$O$153),O142,IF(N141=MAX($O$142:$O$153),N141,0)) -> 0
D143: =IF($M$9=0,"Withdrawal limit","") -> Withdrawal limit | F143: =IF($M$9=0,50%*MIN(L138,L90),"") -> 43856.90292 | G143: 0.087 | H143: before 5th | J143: May | L143: =SUM($K$142:K142)+$L$138+IF(H143="before 5th",K143,0) -> 112656.5864 | M143: =L143*G143/12 -> 816.7602512 | N143: =IF(O143=MAX($O$142:$O$153),O143,IF(N142=MAX($O$142:$O$153),N142,0)) -> 0 | P143: PPF investment limit
G144: 0.087 | H144: before 5th | J144: Jun | L144: =SUM($K$142:K143)+$L$138+IF(H144="before 5th",K144,0) -> 112656.5864 | M144: 816.7602512 | N144: 0 | P144: 150000
G145: 0.087 | H145: before 5th | J145: Jul | L145: =SUM($K$142:K144)+$L$138+IF(H145="before 5th",K145,0) -> 112656.5864 | M145: 816.7602512 | N145: 0 | P145: =IF(SUM(K142:K153)>P144,"Warning: total investment exceeds allowed limit","") -> 
G146: 0.087 | H146: before 5th | J146: Aug | L146: =SUM($K$142:K145)+$L$138+IF(H146="before 5th",K146,0) -> 112656.5864 | M146: 816.7602512 | N146: 0
G147: 0.087 | H147: before 5th | J147: Sep | L147: =SUM($K$142:K146)+$L$138+IF(H147="before 5th",K147,0) -> 112656.5864 | M147: 816.7602512 | N147: 0 | P147: =IF(N154>F143,"Withdrawal is above limit","") -> 
G148: 0.087 | H148: before 5th | J148: Oct | L148: =SUM($K$142:K147)+$L$138+IF(H148="before 5th",K148,0) -> 112656.5864 | M148: 816.7602512 | N148: 0
G149: 0.087 | H149: before 5th | J149: Nov | L149: =SUM($K$142:K148)+$L$138+IF(H149="before 5th",K149,0) -> 112656.5864 | M149: 816.7602512 | N149: 0
G150: 0.087 | H150: before 5th | J150: Dec | L150: =SUM($K$142:K149)+$L$138+IF(H150="before 5th",K150,0) -> 112656.5864 | M150: 816.7602512 | N150: 0
G151: 0.087 | H151: before 5th | J151: Jan | L151: =SUM($K$142:K150)+$L$138+IF(H151="before 5th",K151,0) -> 112656.5864 | M151: 816.7602512 | N151: 0
G152: 0.087 | H152: before 5th | J152: Feb | L152: =SUM($K$142:K151)+$L$138+IF(H152="before 5th",K152,0) -> 112656.5864 | M152: 816.7602512 | N152: 0
G153: 0.087 | H153: before 5th | J153: Mar | L153: =SUM($K$142:K152)+$L$138+IF(H153="before 5th",K153,0) -> 112656.5864 | M153: 816.7602512 | N153: 0
J154: Year End Balance | L154: =SUM(K142:K153)+SUM(M142:M153)+L138-N154 -> 122457.7094 | N154: =MAX(O142:O153) -> 0
J156: Year 10 | O156: Withdrawal can be made only once in a year
G157: Interest rate | H157: Deposited | J157: Month | K157: Deposit | L157: Balance | M157: Interest | O157: Withdrawal
G158: 0.087 | H158: before 5th | J158: Apr | L158: =$L$154+IF(H158="before 5th",K158,0) -> 122457.7094 | M158: =L158*G158/12 -> 887.818393 | N158: =IF(O158=MAX($O$158:$O$169),O158,IF(N157=MAX($O$158:$O$169),N157,0)) -> 0
D159: =IF($M$9=0,"Withdrawal limit","") -> Withdrawal limit | F159: =IF($M$9=0,50%*MIN(L154,L106),"") -> 47672.45348 | G159: 0.087 | H159: before 5th | J159: May | L159: =SUM($K$158:K158)+$L$154+IF(H159="before 5th",K159,0) -> 122457.7094 | M159: =L159*G159/12 -> 887.818393 | N159: =IF(O159=MAX($O$158:$O$169),O159,IF(N158=MAX($O$158:$O$169),N158,0)) -> 0 | P159: PPF investment limit
G160: 0.087 | H160: before 5th | J160: Jun | L160: =SUM($K$158:K159)+$L$154+IF(H160="before 5th",K160,0) -> 122457.7094 | M160: 887.818393 | N160: 0 | P160: 150000
G161: 0.087 | H161: before 5th | J161: Jul | L161: =SUM($K$158:K160)+$L$154+IF(H161="before 5th",K161,0) -> 122457.7094 | M161: 887.818393 | N161: 0 | P161: =IF(SUM(K158:K169)>P160,"Warning: total investment exceeds allowed limit","") -> 
G162: 0.087 | H162: before 5th | J162: Aug | L162: =SUM($K$158:K161)+$L$154+IF(H162="before 5th",K162,0) -> 122457.7094 | M162: 887.818393 | N162: 0
G163: 0.087 | H163: before 5th | J163: Sep | L163: =SUM($K$158:K162)+$L$154+IF(H163="before 5th",K163,0) -> 122457.7094 | M163: 887.818393 | N163: 0 | P163: =IF(N170>F159,"Withdrawal is above limit","") -> 
G164: 0.087 | H164: before 5th | J164: Oct | L164: =SUM($K$158:K163)+$L$154+IF(H164="before 5th",K164,0) -> 122457.7094 | M164: 887.818393 | N164: 0
G165: 0.087 | H165: before 5th | J165: Nov | L165: =SUM($K$158:K164)+$L$154+IF(H165="before 5th",K165,0) -> 122457.7094 | M165: 887.818393 | N165: 0
G166: 0.087 | H166: before 5th | J166: Dec | L166: =SUM($K$158:K165)+$L$154+IF(H166="before 5th",K166,0) -> 122457.7094 | M166: 887.818393 | N166: 0
G167: 0.087 | H167: before 5th | J167: Jan | L167: =SUM($K$158:K166)+$L$154+IF(H167="before 5th",K167,0) -> 122457.7094 | M167: 887.818393 | N167: 0
G168: 0.087 | H168: before 5th | J168: Feb | L168: =SUM($K$158:K167)+$L$154+IF(H168="before 5th",K168,0) -> 122457.7094 | M168: 887.818393 | N168: 0
G169: 0.087 | H169: before 5th | J169: Mar | L169: =SUM($K$158:K168)+$L$154+IF(H169="before 5th",K169,0) -> 122457.7094 | M169: 887.818393 | N169: 0
J170: Year End Balance | L170: =SUM(K158:K169)+SUM(M158:M169)+L154-N170 -> 133111.5301 | N170: =MAX(O158:O169) -> 0
J172: Year 11 | O172: Withdrawal can be made only once in a year
G173: Interest rate | H173: Deposited | J173: Month | K173: Deposit | L173: Balance | M173: Interest | O173: Withdrawal
G174: 0.087 | H174: before 5th | J174: Apr | L174: =$L$170+IF(H174="before 5th",K174,0) -> 133111.5301 | M174: =L174*G174/12 -> 965.0585932 | N174: =IF(O174=MAX($O$174:$O$185),O174,IF(N173=MAX($O$174:$O$185),N173,0)) -> 0
D175: =IF($M$9=0,"Withdrawal limit","") -> Withdrawal limit | F175: =IF($M$9=0,50%*MIN(L170,L122),"") -> 51819.95693 | G175: 0.087 | H175: before 5th | J175: May | L175: =SUM($K$174:K174)+$L$170+IF(H175="before 5th",K175,0) -> 133111.5301 | M175: =L175*G175/12 -> 965.0585932 | N175: =IF(O175=MAX($O$174:$O$185),O175,IF(N174=MAX($O$174:$O$185),N174,0)) -> 0 | P175: PPF investment limit
G176: 0.087 | H176: before 5th | J176: Jun | L176: =SUM($K$174:K175)+$L$170+IF(H176="before 5th",K176,0) -> 133111.5301 | M176: 965.0585932 | N176: 0 | P176: 150000
G177: 0.087 | H177: before 5th | J177: Jul | L177: =SUM($K$174:K176)+$L$170+IF(H177="before 5th",K177,0) -> 133111.5301 | M177: 965.0585932 | N177: 0 | P177: =IF(SUM(K174:K185)>P176,"Warning: total investment exceeds allowed limit","") -> 
G178: 0.087 | H178: before 5th | J178: Aug | L178: =SUM($K$174:K177)+$L$170+IF(H178="before 5th",K178,0) -> 133111.5301 | M178: 965.0585932 | N178: 0
G179: 0.087 | H179: before 5th | J179: Sep | L179: =SUM($K$174:K178)+$L$170+IF(H179="before 5th",K179,0) -> 133111.5301 | M179: 965.0585932 | N179: 0 | P179: =IF(N186>F175,"Withdrawal is above limit","") -> 
G180: 0.087 | H180: before 5th | J180: Oct | L180: =SUM($K$174:K179)+$L$170+IF(H180="before 5th",K180,0) -> 133111.5301 | M180: 965.0585932 | N180: 0
G181: 0.087 | H181: before 5th | J181: Nov | L181: =SUM($K$174:K180)+$L$170+IF(H181="before 5th",K181,0) -> 133111.5301 | M181: 965.0585932 | N181: 0
G182: 0.087 | H182: before 5th | J182: Dec | L182: =SUM($K$174:K181)+$L$170+IF(H182="before 5th",K182,0) -> 133111.5301 | M182: 965.0585932 | N182: 0
G183: 0.087 | H183: before 5th | J183: Jan | L183: =SUM($K$174:K182)+$L$170+IF(H183="before 5th",K183,0) -> 133111.5301 | M183: 965.0585932 | N183: 0
G184: 0.087 | H184: before 5th | J184: Feb | L184: =SUM($K$174:K183)+$L$170+IF(H184="before 5th",K184,0) -> 133111.5301 | M184: 965.0585932 | N184: 0
G185: 0.087 | H185: before 5th | J185: Mar | L185: =SUM($K$174:K184)+$L$170+IF(H185="before 5th",K185,0) -> 133111.5301 | M185: 965.0585932 | N185: 0
J186: Year End Balance | L186: =SUM(K174:K185)+SUM(M174:M185)+L170-N186 -> 144692.2332 | N186: =MAX(O174:O185) -> 0
J188: Year 12 | O188: Withdrawal can be made only once in a year
G189: Interest rate | H189: Deposited | J189: Month | K189: Deposit | L189: Balance | M189: Interest | O189: Withdrawal
G190: 0.087 | H190: before 5th | J190: Apr | L190: =$L$186+IF(H190="before 5th",K190,0) -> 144692.2332 | M190: =L190*G190/12 -> 1049.018691 | N190: =IF(O190=MAX($O$190:$O$201),O190,IF(N189=MAX($O$190:$O$201),N189,0)) -> 0
D191: =IF($M$9=0,"Withdrawal limit","") -> Withdrawal limit | F191: =IF($M$9=0,50%*MIN(L186,L138),"") -> 56328.29318 | G191: 0.087 | H191: before 5th | J191: May | L191: =SUM($K$190:K190)+$L$186+IF(H191="before 5th",K191,0) -> 144692.2332 | M191: =L191*G191/12 -> 1049.018691 | N191: =IF(O191=MAX($O$190:$O$201),O191,IF(N190=MAX($O$190:$O$201),N190,0)) -> 0 | P191: PPF investment limit
G192: 0.087 | H192: before 5th | J192: Jun | L192: =SUM($K$190:K191)+$L$186+IF(H192="before 5th",K192,0) -> 144692.2332 | M192: 1049.018691 | N192: 0 | P192: 150000
G193: 0.087 | H193: before 5th | J193: Jul | L193: =SUM($K$190:K192)+$L$186+IF(H193="before 5th",K193,0) -> 144692.2332 | M193: 1049.018691 | N193: 0 | P193: =IF(SUM(K190:K201)>P192,"Warning: total investment exceeds allowed limit","") -> 
G194: 0.087 | H194: before 5th | J194: Aug | L194: =SUM($K$190:K193)+$L$186+IF(H194="before 5th",K194,0) -> 144692.2332 | M194: 1049.018691 | N194: 0
G195: 0.087 | H195: before 5th | J195: Sep | L195: =SUM($K$190:K194)+$L$186+IF(H195="before 5th",K195,0) -> 144692.2332 | M195: 1049.018691 | N195: 0 | P195: =IF(N202>F191,"Withdrawal is above limit","") -> 
G196: 0.087 | H196: before 5th | J196: Oct | L196: =SUM($K$190:K195)+$L$186+IF(H196="before 5th",K196,0) -> 144692.2332 | M196: 1049.018691 | N196: 0
G197: 0.087 | H197: before 5th | J197: Nov | L197: =SUM($K$190:K196)+$L$186+IF(H197="before 5th",K197,0) -> 144692.2332 | M197: 1049.018691 | N197: 0
G198: 0.087 | H198: before 5th | J198: Dec | L198: =SUM($K$190:K197)+$L$186+IF(H198="before 5th",K198,0) -> 144692.2332 | M198: 1049.018691 | N198: 0
G199: 0.087 | H199: before 5th | J199: Jan | L199: =SUM($K$190:K198)+$L$186+IF(H199="before 5th",K199,0) -> 144692.2332 | M199: 1049.018691 | N199: 0
G200: 0.087 | H200: before 5th | J200: Feb | L200: =SUM($K$190:K199)+$L$186+IF(H200="before 5th",K200,0) -> 144692.2332 | M200: 1049.018691 | N200: 0
G201: 0.087 | H201: before 5th | J201: Mar | L201: =SUM($K$190:K200)+$L$186+IF(H201="before 5th",K201,0) -> 144692.2332 | M201: 1049.018691 | N201: 0
J202: Year End Balance | L202: =SUM(K190:K201)+SUM(M190:M201)+L186-N202 -> 157280.4575 | N202: =MAX(O190:O201) -> 0
J204: Year 13 | O204: Withdrawal can be made only once in a year
G205: Interest rate | H205: Deposited | J205: Month | K205: Deposit | L205: Balance | M205: Interest | O205: Withdrawal
G206: 0.087 | H206: before 5th | J206: Apr | L206: =$L$202+IF(H206="before 5th",K206,0) -> 157280.4575 | M206: =L206*G206/12 -> 1140.283317 | N206: =IF(O206=MAX($O$206:$O$217),O206,IF(N205=MAX($O$206:$O$217),N205,0)) -> 0
D207: =IF($M$9=0,"Withdrawal limit","") -> Withdrawal limit | F207: =IF($M$9=0,50%*MIN(L202,L154),"") -> 61228.85469 | G207: 0.087 | H207: before 5th | J207: May | L207: =SUM($K$206:K206)+$L$202+IF(H207="before 5th",K207,0) -> 157280.4575 | M207: =L207*G207/12 -> 1140.283317 | N207: =IF(O207=MAX($O$206:$O$217),O207,IF(N206=MAX($O$206:$O$217),N206,0)) -> 0 | P207: PPF investment limit
G208: 0.087 | H208: before 5th | J208: Jun | L208: =SUM($K$206:K207)+$L$202+IF(H208="before 5th",K208,0) -> 157280.4575 | M208: 1140.283317 | N208: 0 | P208: 150000
G209: 0.087 | H209: before 5th | J209: Jul | L209: =SUM($K$206:K208)+$L$202+IF(H209="before 5th",K209,0) -> 157280.4575 | M209: 1140.283317 | N209: 0 | P209: =IF(SUM(K206:K217)>P208,"Warning: total investment exceeds allowed limit","") -> 
G210: 0.087 | H210: before 5th | J210: Aug | L210: =SUM($K$206:K209)+$L$202+IF(H210="before 5th",K210,0) -> 157280.4575 | M210: 1140.283317 | N210: 0
G211: 0.087 | H211: before 5th | J211: Sep | L211: =SUM($K$206:K210)+$L$202+IF(H211="before 5th",K211,0) -> 157280.4575 | M211: 1140.283317 | N211: 0 | P211: =IF(N218>F207,"Withdrawal is above limit","") -> 
G212: 0.087 | H212: before 5th | J212: Oct | L212: =SUM($K$206:K211)+$L$202+IF(H212="before 5th",K212,0) -> 157280.4575 | M212: 1140.283317 | N212: 0
G213: 0.087 | H213: before 5th | J213: Nov | L213: =SUM($K$206:K212)+$L$202+IF(H213="before 5th",K213,0) -> 157280.4575 | M213: 1140.283317 | N213: 0
G214: 0.087 | H214: before 5th | J214: Dec | L214: =SUM($K$206:K213)+$L$202+IF(H214="before 5th",K214,0) -> 157280.4575 | M214: 1140.283317 | N214: 0
G215: 0.087 | H215: before 5th | J215: Jan | L215: =SUM($K$206:K214)+$L$202+IF(H215="before 5th",K215,0) -> 157280.4575 | M215: 1140.283317 | N215: 0
G216: 0.087 | H216: before 5th | J216: Feb | L216: =SUM($K$206:K215)+$L$202+IF(H216="before 5th",K216,0) -> 157280.4575 | M216: 1140.283317 | N216: 0
G217: 0.087 | H217: before 5th | J217: Mar | L217: =SUM($K$206:K216)+$L$202+IF(H217="before 5th",K217,0) -> 157280.4575 | M217: 1140.283317 | N217: 0
J218: Year End Balance | L218: =SUM(K206:K217)+SUM(M206:M217)+L202-N218 -> 170963.8573 | N218: =MAX(O206:O217) -> 0
... 30 more rows

Sheet Post 15 yearsTracker
AD1: before 5th
D2: Use this sheet to track your PPF if you have extended it at the end of the 15 year period | AD2: after 5th
E5: Enter data only in green cells
J10: Balance at the start of 5Y extension block
L11: 469108
J13: 1st Extension Year 1 | O13: Withdrawal can be made only once in a year
G14: Interest rate | H14: Deposited | J14: Month | K14: Deposit | L14: Balance | M14: Interest | O14: Withdrawal
G15: 0.087 | H15: before 5th | J15: Apr | K15: 5000 | L15: =$L$11+IF(H15="before 5th",K15,0) -> 474108 | M15: =L15*G15/12 -> 3437.283 | N15: =IF(O15=MAX($O$15:$O$26),O15,IF(N14=MAX($O$15:$O$26),N14,0)) -> 0
D16: =IF($M$9=0,"Withdrawal limit","") -> Withdrawal limit | F16: =60%*$L$11 -> 281464.8 | G16: 0.087 | H16: before 5th | J16: May | K16: 5000 | L16: =SUM($K$15:K15)+$L$11+IF(H16="before 5th",K16,0) -> 479108 | M16: =L16*G16/12 -> 3473.533 | N16: 0 | P16: PPF investment limit
G17: 0.087 | H17: before 5th | J17: Jun | K17: 5000 | L17: =SUM($K$15:K16)+$L$11+IF(H17="before 5th",K17,0) -> 484108 | M17: 3509.783 | N17: 0 | P17: 150000
G18: 0.087 | H18: before 5th | J18: Jul | K18: 5000 | L18: =SUM($K$15:K17)+$L$11+IF(H18="before 5th",K18,0) -> 489108 | M18: 3546.033 | N18: 0 | P18: =IF(SUM(K15:K26)>P17,"Warning: total investment exceeds allowed limit","") -> 
G19: 0.087 | H19: before 5th | J19: Aug | K19: 5000 | L19: =SUM($K$15:K18)+$L$11+IF(H19="before 5th",K19,0) -> 494108 | M19: 3582.283 | N19: 0
G20: 0.087 | H20: before 5th | J20: Sep | K20: 5000 | L20: =SUM($K$15:K19)+$L$11+IF(H20="before 5th",K20,0) -> 499108 | M20: 3618.533 | N20: 0 | P20: =IF(N27>F16,"Withdrawal is above limit","") -> 
G21: 0.087 | H21: before 5th | J21: Oct | K21: 5000 | L21: =SUM($K$15:K20)+$L$11+IF(H21="before 5th",K21,0) -> 504108 | M21: 3654.783 | N21: 0
G22: 0.087 | H22: before 5th | J22: Nov | K22: 5000 | L22: =SUM($K$15:K21)+$L$11+IF(H22="before 5th",K22,0) -> 509108 | M22: 3691.033 | N22: 0
G23: 0.087 | H23: before 5th | J23: Dec | K23: 5000 | L23: =SUM($K$15:K22)+$L$11+IF(H23="before 5th",K23,0) -> 514108 | M23: 3727.283 | N23: 0
G24: 0.087 | H24: before 5th | J24: Jan | K24: 5000 | L24: =SUM($K$15:K23)+$L$11+IF(H24="before 5th",K24,0) -> 519108 | M24: 3763.533 | N24: 0
G25: 0.087 | H25: before 5th | J25: Feb | K25: 5000 | L25: =SUM($K$15:K24)+$L$11+IF(H25="before 5th",K25,0) -> 524108 | M25: 3799.783 | N25: 0
G26: 0.087 | H26: before 5th | J26: Mar | K26: 5000 | L26: =SUM($K$15:K25)+$L$11+IF(H26="before 5th",K26,0) -> 529108 | M26: 3836.033 | N26: 0
J27: Year End Balance | L27: =SUM(K15:K26)+SUM(M15:M26)+L11-N27 -> 572747.896 | N27: =MAX(O15:O26) -> 0
J29: 1st Extension Year 2 | O29: Withdrawal can be made only once in a year
G30: Interest rate | H30: Deposited | J30: Month | K30: Deposit | L30: Balance | M30: Interest | O30: Withdrawal
G31: 0.087 | H31: before 5th | J31: Apr | K31: 5000 | L31: =$L$27+IF(H31="before 5th",K31,0) -> 577747.896 | M31: =L31*G31/12 -> 4188.672246 | N31: =IF(O31=MAX($O$31:$O$42),O31,IF(N30=MAX($O$31:$O$42),N30,0)) -> 0
D32: =IF($M$9=0,"Withdrawal limit","") -> Withdrawal limit | F32: =60%*$L$11 -> 281464.8 | G32: 0.087 | H32: before 5th | J32: May | K32: 5000 | L32: =SUM($K$31:K31)+$L$27+IF(H32="before 5th",K32,0) -> 582747.896 | M32: =L32*G32/12 -> 4224.922246 | N32: 0 | P32: PPF investment limit
G33: 0.087 | H33: before 5th | J33: Jun | K33: 5000 | L33: =SUM($K$31:K32)+$L$27+IF(H33="before 5th",K33,0) -> 587747.896 | M33: 4261.172246 | N33: 0 | P33: 150000
G34: 0.087 | H34: before 5th | J34: Jul | K34: 5000 | L34: =SUM($K$31:K33)+$L$27+IF(H34="before 5th",K34,0) -> 592747.896 | M34: 4297.422246 | N34: 0 | P34: =IF(SUM(K31:K42)>P33,"Warning: total investment exceeds allowed limit","") -> 
G35: 0.087 | H35: before 5th | J35: Aug | K35: 5000 | L35: =SUM($K$31:K34)+$L$27+IF(H35="before 5th",K35,0) -> 597747.896 | M35: 4333.672246 | N35: 0
G36: 0.087 | H36: before 5th | J36: Sep | K36: 5000 | L36: =SUM($K$31:K35)+$L$27+IF(H36="before 5th",K36,0) -> 602747.896 | M36: 4369.922246 | N36: 0 | P36: =IF(N43>F32,"Withdrawal is above limit","") -> 
G37: 0.087 | H37: before 5th | J37: Oct | K37: 5000 | L37: =SUM($K$31:K36)+$L$27+IF(H37="before 5th",K37,0) -> 607747.896 | M37: 4406.172246 | N37: 0
G38: 0.087 | H38: before 5th | J38: Nov | K38: 5000 | L38: =SUM($K$31:K37)+$L$27+IF(H38="before 5th",K38,0) -> 612747.896 | M38: 4442.422246 | N38: 0
G39: 0.087 | H39: before 5th | J39: Dec | K39: 5000 | L39: =SUM($K$31:K38)+$L$27+IF(H39="before 5th",K39,0) -> 617747.896 | M39: 4478.672246 | N39: 0
G40: 0.087 | H40: before 5th | J40: Jan | K40: 5000 | L40: =SUM($K$31:K39)+$L$27+IF(H40="before 5th",K40,0) -> 622747.896 | M40: 4514.922246 | N40: 0
G41: 0.087 | H41: before 5th | J41: Feb | K41: 5000 | L41: =SUM($K$31:K40)+$L$27+IF(H41="before 5th",K41,0) -> 627747.896 | M41: 4551.172246 | N41: 0
G42: 0.087 | H42: before 5th | J42: Mar | K42: 5000 | L42: =SUM($K$31:K41)+$L$27+IF(H42="before 5th",K42,0) -> 632747.896 | M42: 4587.422246 | N42: 0
J43: Year End Balance | L43: =SUM(K31:K42)+SUM(M31:M42)+L27-N43 -> 685404.463 | N43: =MAX(O31:O42) -> 0
J45: 1st Extension Year 3 | O45: Withdrawal can be made only once in a year
G46: Interest rate | H46: Deposited | J46: Month | K46: Deposit | L46: Balance | M46: Interest | O46: Withdrawal
G47: 0.087 | H47: before 5th | J47: Apr | K47: 5000 | L47: =$L$43+IF(H47="before 5th",K47,0) -> 690404.463 | M47: =L47*G47/12 -> 5005.432356 | N47: =IF(O47=MAX($O$47:$O$58),O47,IF(N46=MAX($O$47:$O$58),N46,0)) -> 0
D48: =IF($M$9=0,"Withdrawal limit","") -> Withdrawal limit | F48: =60%*$L$11 -> 281464.8 | G48: 0.087 | H48: before 5th | J48: May | K48: 5000 | L48: =SUM($K$47:K47)+$L$43+IF(H48="before 5th",K48,0) -> 695404.463 | M48: =L48*G48/12 -> 5041.682356 | N48: 0 | P48: PPF investment limit
G49: 0.087 | H49: before 5th | J49: Jun | K49: 5000 | L49: =SUM($K$47:K48)+$L$43+IF(H49="before 5th",K49,0) -> 700404.463 | M49: 5077.932356 | N49: 0 | P49: 150000
G50: 0.087 | H50: before 5th | J50: Jul | K50: 5000 | L50: =SUM($K$47:K49)+$L$43+IF(H50="before 5th",K50,0) -> 705404.463 | M50: 5114.182356 | N50: 0 | P50: =IF(SUM(K47:K58)>P49,"Warning: total investment exceeds allowed limit","") -> 
G51: 0.087 | H51: before 5th | J51: Aug | K51: 5000 | L51: =SUM($K$47:K50)+$L$43+IF(H51="before 5th",K51,0) -> 710404.463 | M51: 5150.432356 | N51: 0
G52: 0.087 | H52: before 5th | J52: Sep | K52: 5000 | L52: =SUM($K$47:K51)+$L$43+IF(H52="before 5th",K52,0) -> 715404.463 | M52: 5186.682356 | N52: 0 | P52: =IF(N59>F48,"Withdrawal is above limit","") -> 
G53: 0.087 | H53: before 5th | J53: Oct | K53: 5000 | L53: =SUM($K$47:K52)+$L$43+IF(H53="before 5th",K53,0) -> 720404.463 | M53: 5222.932356 | N53: 0
G54: 0.087 | H54: before 5th | J54: Nov | K54: 5000 | L54: =SUM($K$47:K53)+$L$43+IF(H54="before 5th",K54,0) -> 725404.463 | M54: 5259.182356 | N54: 0
G55: 0.087 | H55: before 5th | J55: Dec | K55: 5000 | L55: =SUM($K$47:K54)+$L$43+IF(H55="before 5th",K55,0) -> 730404.463 | M55: 5295.432356 | N55: 0
G56: 0.087 | H56: before 5th | J56: Jan | K56: 5000 | L56: =SUM($K$47:K55)+$L$43+IF(H56="before 5th",K56,0) -> 735404.463 | M56: 5331.682356 | N56: 0
G57: 0.087 | H57: before 5th | J57: Feb | K57: 5000 | L57: =SUM($K$47:K56)+$L$43+IF(H57="before 5th",K57,0) -> 740404.463 | M57: 5367.932356 | N57: 0
G58: 0.087 | H58: before 5th | J58: Mar | K58: 5000 | L58: =SUM($K$47:K57)+$L$43+IF(H58="before 5th",K58,0) -> 745404.463 | M58: 5404.182356 | N58: 0
J59: Year End Balance | L59: =SUM(K47:K58)+SUM(M47:M58)+L43-N59 -> 807862.1512 | N59: =MAX(O47:O58) -> 0
J61: 1st Extension Year 4 | O61: Withdrawal can be made only once in a year
G62: Interest rate | H62: Deposited | J62: Month | K62: Deposit | L62: Balance | M62: Interest | O62: Withdrawal
G63: 0.087 | H63: before 5th | J63: Apr | K63: 5000 | L63: =$L$59+IF(H63="before 5th",K63,0) -> 812862.1512 | M63: =L63*G63/12 -> 5893.250596 | N63: =IF(O63=MAX($O$63:$O$74),O63,IF(N62=MAX($O$63:$O$74),N62,0)) -> 0
D64: =IF($M$9=0,"Withdrawal limit","") -> Withdrawal limit | F64: =60%*$L$11 -> 281464.8 | G64: 0.087 | H64: before 5th | J64: May | K64: 5000 | L64: =SUM($K$63:K63)+$L$59+IF(H64="before 5th",K64,0) -> 817862.1512 | M64: =L64*G64/12 -> 5929.500596 | N64: 0 | P64: PPF investment limit
G65: 0.087 | H65: before 5th | J65: Jun | K65: 5000 | L65: =SUM($K$63:K64)+$L$59+IF(H65="before 5th",K65,0) -> 822862.1512 | M65: 5965.750596 | N65: 0 | P65: 150000
G66: 0.087 | H66: before 5th | J66: Jul | K66: 5000 | L66: =SUM($K$63:K65)+$L$59+IF(H66="before 5th",K66,0) -> 827862.1512 | M66: 6002.000596 | N66: 0 | P66: =IF(SUM(K63:K74)>P65,"Warning: total investment exceeds allowed limit","") -> 
G67: 0.087 | H67: before 5th | J67: Aug | K67: 5000 | L67: =SUM($K$63:K66)+$L$59+IF(H67="before 5th",K67,0) -> 832862.1512 | M67: 6038.250596 | N67: 0
G68: 0.087 | H68: before 5th | J68: Sep | K68: 5000 | L68: =SUM($K$63:K67)+$L$59+IF(H68="before 5th",K68,0) -> 837862.1512 | M68: 6074.500596 | N68: 0 | P68: =IF(N75>F64,"Withdrawal is above limit","") -> 
G69: 0.087 | H69: before 5th | J69: Oct | K69: 5000 | L69: =SUM($K$63:K68)+$L$59+IF(H69="before 5th",K69,0) -> 842862.1512 | M69: 6110.750596 | N69: 0
G70: 0.087 | H70: before 5th | J70: Nov | K70: 5000 | L70: =SUM($K$63:K69)+$L$59+IF(H70="before 5th",K70,0) -> 847862.1512 | M70: 6147.000596 | N70: 0
G71: 0.087 | H71: before 5th | J71: Dec | K71: 5000 | L71: =SUM($K$63:K70)+$L$59+IF(H71="before 5th",K71,0) -> 852862.1512 | M71: 6183.250596 | N71: 0
G72: 0.087 | H72: before 5th | J72: Jan | K72: 5000 | L72: =SUM($K$63:K71)+$L$59+IF(H72="before 5th",K72,0) -> 857862.1512 | M72: 6219.500596 | N72: 0
G73: 0.087 | H73: before 5th | J73: Feb | K73: 5000 | L73: =SUM($K$63:K72)+$L$59+IF(H73="before 5th",K73,0) -> 862862.1512 | M73: 6255.750596 | N73: 0
G74: 0.087 | H74: before 5th | J74: Mar | K74: 5000 | L74: =SUM($K$63:K73)+$L$59+IF(H74="before 5th",K74,0) -> 867862.1512 | M74: 6292.000596 | N74: 0
J75: Year End Balance | L75: =SUM(K63:K74)+SUM(M63:M74)+L59-N75 -> 940973.6584 | N75: =MAX(O63:O74) -> 0
J77: 1st Extension Year 5 | O77: Withdrawal can be made only once in a year
G78: Interest rate | H78: Deposited | J78: Month | K78: Deposit | L78: Balance | M78: Interest | O78: Withdrawal
G79: 0.087 | H79: before 5th | J79: Apr | K79: 5000 | L79: =$L$75+IF(H79="before 5th",K79,0) -> 945973.6584 | M79: =L79*G79/12 -> 6858.309023 | N79: =IF(O79=MAX($O$79:$O$90),O79,IF(N78=MAX($O$79:$O$90),N78,0)) -> 0
D80: =IF($M$9=0,"Withdrawal limit","") -> Withdrawal limit | F80: =60%*$L$11 -> 281464.8 | G80: 0.087 | H80: before 5th | J80: May | K80: 5000 | L80: =SUM($K$79:K79)+$L$75+IF(H80="before 5th",K80,0) -> 950973.6584 | M80: =L80*G80/12 -> 6894.559023 | N80: 0 | P80: PPF investment limit
G81: 0.087 | H81: before 5th | J81: Jun | K81: 5000 | L81: =SUM($K$79:K80)+$L$75+IF(H81="before 5th",K81,0) -> 955973.6584 | M81: 6930.809023 | N81: 0 | P81: 150000
G82: 0.087 | H82: before 5th | J82: Jul | K82: 5000 | L82: =SUM($K$79:K81)+$L$75+IF(H82="before 5th",K82,0) -> 960973.6584 | M82: 6967.059023 | N82: 0 | P82: =IF(SUM(K79:K90)>P81,"Warning: total investment exceeds allowed limit","") -> 
G83: 0.087 | H83: before 5th | J83: Aug | K83: 5000 | L83: =SUM($K$79:K82)+$L$75+IF(H83="before 5th",K83,0) -> 965973.6584 | M83: 7003.309023 | N83: 0
G84: 0.087 | H84: before 5th | J84: Sep | K84: 5000 | L84: =SUM($K$79:K83)+$L$75+IF(H84="before 5th",K84,0) -> 970973.6584 | M84: 7039.559023 | N84: 0 | P84: =IF(N91>F80,"Withdrawal is above limit","") -> 
G85: 0.087 | H85: before 5th | J85: Oct | K85: 5000 | L85: =SUM($K$79:K84)+$L$75+IF(H85="before 5th",K85,0) -> 975973.6584 | M85: 7075.809023 | N85: 0
G86: 0.087 | H86: before 5th | J86: Nov | K86: 5000 | L86: =SUM($K$79:K85)+$L$75+IF(H86="before 5th",K86,0) -> 980973.6584 | M86: 7112.059023 | N86: 0
G87: 0.087 | H87: before 5th | J87: Dec | K87: 5000 | L87: =SUM($K$79:K86)+$L$75+IF(H87="before 5th",K87,0) -> 985973.6584 | M87: 7148.309023 | N87: 0
G88: 0.087 | H88: before 5th | J88: Jan | K88: 5000 | L88: =SUM($K$79:K87)+$L$75+IF(H88="before 5th",K88,0) -> 990973.6584 | M88: 7184.559023 | N88: 0
G89: 0.087 | H89: before 5th | J89: Feb | K89: 5000 | L89: =SUM($K$79:K88)+$L$75+IF(H89="before 5th",K89,0) -> 995973.6584 | M89: 7220.809023 | N89: 0
G90: 0.087 | H90: before 5th | J90: Mar | K90: 5000 | L90: =SUM($K$79:K89)+$L$75+IF(H90="before 5th",K90,0) -> 1000973.658 | M90: 7257.059023 | N90: 0
J91: Year End Balance | L91: =SUM(K79:K90)+SUM(M79:M90)+L75-N91 -> 1085665.867 | N91: =MAX(O79:O90) -> 0
J93: 2nd Extension Year 1 | O93: Withdrawal can be made only once in a year
G94: Interest rate | H94: Deposited | J94: Month | K94: Deposit | L94: Balance | M94: Interest | O94: Withdrawal
G95: 0.087 | H95: before 5th | J95: Apr | K95: 5000 | L95: =$L$91+IF(H95="before 5th",K95,0) -> 1090665.867 | M95: =L95*G95/12 -> 7907.327533 | N95: =IF(O95=MAX($O$95:$O$106),O95,IF(N94=MAX($O$95:$O$106),N94,0)) -> 0
D96: =IF($M$9=0,"Withdrawal limit","") -> Withdrawal limit | F96: =60%*$L$91 -> 651399.52 | G96: 0.087 | H96: before 5th | J96: May | K96: 5000 | L96: =SUM($K$95:K95)+$L$91+IF(H96="before 5th",K96,0) -> 1095665.867 | M96: =L96*G96/12 -> 7943.577533 | N96: 0 | P96: PPF investment limit
G97: 0.087 | H97: before 5th | J97: Jun | K97: 5000 | L97: =SUM($K$95:K96)+$L$91+IF(H97="before 5th",K97,0) -> 1100665.867 | M97: 7979.827533 | N97: 0 | P97: 150000
G98: 0.087 | H98: before 5th | J98: Jul | K98: 5000 | L98: =SUM($K$95:K97)+$L$91+IF(H98="before 5th",K98,0) -> 1105665.867 | M98: 8016.077533 | N98: 0 | P98: =IF(SUM(K95:K106)>P97,"Warning: total investment exceeds allowed limit","") -> 
G99: 0.087 | H99: before 5th | J99: Aug | K99: 5000 | L99: =SUM($K$95:K98)+$L$91+IF(H99="before 5th",K99,0) -> 1110665.867 | M99: 8052.327533 | N99: 0
G100: 0.087 | H100: before 5th | J100: Sep | K100: 5000 | L100: =SUM($K$95:K99)+$L$91+IF(H100="before 5th",K100,0) -> 1115665.867 | M100: 8088.577533 | N100: 0 | P100: =IF(N107>F96,"Withdrawal is above limit","") -> 
G101: 0.087 | H101: before 5th | J101: Oct | K101: 5000 | L101: =SUM($K$95:K100)+$L$91+IF(H101="before 5th",K101,0) -> 1120665.867 | M101: 8124.827533 | N101: 0
G102: 0.087 | H102: before 5th | J102: Nov | K102: 5000 | L102: =SUM($K$95:K101)+$L$91+IF(H102="before 5th",K102,0) -> 1125665.867 | M102: 8161.077533 | N102: 0
G103: 0.087 | H103: before 5th | J103: Dec | K103: 5000 | L103: =SUM($K$95:K102)+$L$91+IF(H103="before 5th",K103,0) -> 1130665.867 | M103: 8197.327533 | N103: 0
G104: 0.087 | H104: before 5th | J104: Jan | K104: 5000 | L104: =SUM($K$95:K103)+$L$91+IF(H104="before 5th",K104,0) -> 1135665.867 | M104: 8233.577533 | N104: 0
G105: 0.087 | H105: before 5th | J105: Feb | K105: 5000 | L105: =SUM($K$95:K104)+$L$91+IF(H105="before 5th",K105,0) -> 1140665.867 | M105: 8269.827533 | N105: 0
G106: 0.087 | H106: before 5th | J106: Mar | K106: 5000 | L106: =SUM($K$95:K105)+$L$91+IF(H106="before 5th",K106,0) -> 1145665.867 | M106: 8306.077533 | N106: 0
J107: Year End Balance | L107: =SUM(K95:K106)+SUM(M95:M106)+L91-N107 -> 1242946.297 | N107: =MAX(O95:O106) -> 0
J109: 2nd Extension Year 2 | O109: Withdrawal can be made only once in a year
G110: Interest rate | H110: Deposited | J110: Month | K110: Deposit | L110: Balance | M110: Interest | O110: Withdrawal
G111: 0.087 | H111: before 5th | J111: Apr | K111: 5000 | L111: =$L$107+IF(H111="before 5th",K111,0) -> 1247946.297 | M111: =L111*G111/12 -> 9047.610654 | N111: =IF(O111=MAX($O$111:$O$122),O111,IF(N110=MAX($O$111:$O$122),N110,0)) -> 0
D112: =IF($M$9=0,"Withdrawal limit","") -> Withdrawal limit | F112: =60%*$L$91 -> 651399.52 | G112: 0.087 | H112: before 5th | J112: May | K112: 5000 | L112: =SUM($K$111:K111)+$L$107+IF(H112="before 5th",K112,0) -> 1252946.297 | M112: =L112*G112/12 -> 9083.860654 | N112: 0 | P112: PPF investment limit
G113: 0.087 | H113: before 5th | J113: Jun | K113: 5000 | L113: =SUM($K$111:K112)+$L$107+IF(H113="before 5th",K113,0) -> 1257946.297 | M113: 9120.110654 | N113: 0 | P113: 150000
G114: 0.087 | H114: before 5th | J114: Jul | K114: 5000 | L114: =SUM($K$111:K113)+$L$107+IF(H114="before 5th",K114,0) -> 1262946.297 | M114: 9156.360654 | N114: 0 | P114: =IF(SUM(K111:K122)>P113,"Warning: total investment exceeds allowed limit","") -> 
G115: 0.087 | H115: before 5th | J115: Aug | K115: 5000 | L115: =SUM($K$111:K114)+$L$107+IF(H115="before 5th",K115,0) -> 1267946.297 | M115: 9192.610654 | N115: 0
G116: 0.087 | H116: before 5th | J116: Sep | K116: 5000 | L116: =SUM($K$111:K115)+$L$107+IF(H116="before 5th",K116,0) -> 1272946.297 | M116: 9228.860654 | N116: 0 | P116: =IF(N123>F112,"Withdrawal is above limit","") -> 
G117: 0.087 | H117: before 5th | J117: Oct | K117: 5000 | L117: =SUM($K$111:K116)+$L$107+IF(H117="before 5th",K117,0) -> 1277946.297 | M117: 9265.110654 | N117: 0
G118: 0.087 | H118: before 5th | J118: Nov | K118: 5000 | L118: =SUM($K$111:K117)+$L$107+IF(H118="before 5th",K118,0) -> 1282946.297 | M118: 9301.360654 | N118: 0
G119: 0.087 | H119: before 5th | J119: Dec | K119: 5000 | L119: =SUM($K$111:K118)+$L$107+IF(H119="before 5th",K119,0) -> 1287946.297 | M119: 9337.610654 | N119: 0
G120: 0.087 | H120: before 5th | J120: Jan | K120: 5000 | L120: =SUM($K$111:K119)+$L$107+IF(H120="before 5th",K120,0) -> 1292946.297 | M120: 9373.860654 | N120: 0
G121: 0.087 | H121: before 5th | J121: Feb | K121: 5000 | L121: =SUM($K$111:K120)+$L$107+IF(H121="before 5th",K121,0) -> 1297946.297 | M121: 9410.110654 | N121: 0
G122: 0.087 | H122: before 5th | J122: Mar | K122: 5000 | L122: =SUM($K$111:K121)+$L$107+IF(H122="before 5th",K122,0) -> 1302946.297 | M122: 9446.360654 | N122: 0
J123: Year End Balance | L123: =SUM(K111:K122)+SUM(M111:M122)+L107-N123 -> 1413910.125 | N123: =MAX(O111:O122) -> 0
J125: 2nd Extension Year 3 | O125: Withdrawal can be made only once in a year
G126: Interest rate | H126: Deposited | J126: Month | K126: Deposit | L126: Balance | M126: Interest | O126: Withdrawal
G127: 0.087 | H127: before 5th | J127: Apr | K127: 5000 | L127: =$L$123+IF(H127="before 5th",K127,0) -> 1418910.125 | M127: =L127*G127/12 -> 10287.09841 | N127: =IF(O127=MAX($O$127:$O$138),O127,IF(N126=MAX($O$127:$O$138),N126,0)) -> 0
D128: =IF($M$9=0,"Withdrawal limit","") -> Withdrawal limit | F128: =60%*$L$91 -> 651399.52 | G128: 0.087 | H128: before 5th | J128: May | K128: 5000 | L128: =SUM($K$127:K127)+$L$123+IF(H128="before 5th",K128,0) -> 1423910.125 | M128: =L128*G128/12 -> 10323.34841 | N128: 0 | P128: PPF investment limit
G129: 0.087 | H129: before 5th | J129: Jun | K129: 5000 | L129: =SUM($K$127:K128)+$L$123+IF(H129="before 5th",K129,0) -> 1428910.125 | M129: 10359.59841 | N129: 0 | P129: 150000
G130: 0.087 | H130: before 5th | J130: Jul | K130: 5000 | L130: =SUM($K$127:K129)+$L$123+IF(H130="before 5th",K130,0) -> 1433910.125 | M130: 10395.84841 | N130: 0 | P130: =IF(SUM(K127:K138)>P129,"Warning: total investment exceeds allowed limit","") -> 
G131: 0.087 | H131: before 5th | J131: Aug | K131: 5000 | L131: =SUM($K$127:K130)+$L$123+IF(H131="before 5th",K131,0) -> 1438910.125 | M131: 10432.09841 | N131: 0
G132: 0.087 | H132: before 5th | J132: Sep | K132: 5000 | L132: =SUM($K$127:K131)+$L$123+IF(H132="before 5th",K132,0) -> 1443910.125 | M132: 10468.34841 | N132: 0 | P132: =IF(N139>F128,"Withdrawal is above limit","") -> 
G133: 0.087 | H133: before 5th | J133: Oct | K133: 5000 | L133: =SUM($K$127:K132)+$L$123+IF(H133="before 5th",K133,0) -> 1448910.125 | M133: 10504.59841 | N133: 0
G134: 0.087 | H134: before 5th | J134: Nov | K134: 5000 | L134: =SUM($K$127:K133)+$L$123+IF(H134="before 5th",K134,0) -> 1453910.125 | M134: 10540.84841 | N134: 0
G135: 0.087 | H135: before 5th | J135: Dec | K135: 5000 | L135: =SUM($K$127:K134)+$L$123+IF(H135="before 5th",K135,0) -> 1458910.125 | M135: 10577.09841 | N135: 0
G136: 0.087 | H136: before 5th | J136: Jan | K136: 5000 | L136: =SUM($K$127:K135)+$L$123+IF(H136="before 5th",K136,0) -> 1463910.125 | M136: 10613.34841 | N136: 0
G137: 0.087 | H137: before 5th | J137: Feb | K137: 5000 | L137: =SUM($K$127:K136)+$L$123+IF(H137="before 5th",K137,0) -> 1468910.125 | M137: 10649.59841 | N137: 0
G138: 0.087 | H138: before 5th | J138: Mar | K138: 5000 | L138: =SUM($K$127:K137)+$L$123+IF(H138="before 5th",K138,0) -> 1473910.125 | M138: 10685.84841 | N138: 0
J139: Year End Balance | L139: =SUM(K127:K138)+SUM(M127:M138)+L123-N139 -> 1599747.806 | N139: =MAX(O127:O138) -> 0
J141: 2nd Extension Year 4 | O141: Withdrawal can be made only once in a year
G142: Interest rate | H142: Deposited | J142: Month | K142: Deposit | L142: Balance | M142: Interest | O142: Withdrawal
G143: 0.087 | H143: before 5th | J143: Apr | K143: 5000 | L143: =$L$139+IF(H143="before 5th",K143,0) -> 1604747.806 | M143: =L143*G143/12 -> 11634.42159 | N143: =IF(O143=MAX($O$143:$O$154),O143,IF(N142=MAX($O$143:$O$154),N142,0)) -> 0
D144: =IF($M$9=0,"Withdrawal limit","") -> Withdrawal limit | F144: =60%*$L$91 -> 651399.52 | G144: 0.087 | H144: before 5th | J144: May | K144: 5000 | L144: =SUM($K$143:K143)+$L$139+IF(H144="before 5th",K144,0) -> 1609747.806 | M144: =L144*G144/12 -> 11670.67159 | N144: 0 | P144: PPF investment limit
G145: 0.087 | H145: before 5th | J145: Jun | K145: 5000 | L145: =SUM($K$143:K144)+$L$139+IF(H145="before 5th",K145,0) -> 1614747.806 | M145: 11706.92159 | N145: 0 | P145: 150000
G146: 0.087 | H146: before 5th | J146: Jul | K146: 5000 | L146: =SUM($K$143:K145)+$L$139+IF(H146="before 5th",K146,0) -> 1619747.806 | M146: 11743.17159 | N146: 0 | P146: =IF(SUM(K143:K154)>P145,"Warning: total investment exceeds allowed limit","") -> 
G147: 0.087 | H147: before 5th | J147: Aug | K147: 5000 | L147: =SUM($K$143:K146)+$L$139+IF(H147="before 5th",K147,0) -> 1624747.806 | M147: 11779.42159 | N147: 0
G148: 0.087 | H148: before 5th | J148: Sep | K148: 5000 | L148: =SUM($K$143:K147)+$L$139+IF(H148="before 5th",K148,0) -> 1629747.806 | M148: 11815.67159 | N148: 0 | P148: =IF(N155>F144,"Withdrawal is above limit","") -> 
G149: 0.087 | H149: before 5th | J149: Oct | K149: 5000 | L149: =SUM($K$143:K148)+$L$139+IF(H149="before 5th",K149,0) -> 1634747.806 | M149: 11851.92159 | N149: 0
G150: 0.087 | H150: before 5th | J150: Nov | K150: 5000 | L150: =SUM($K$143:K149)+$L$139+IF(H150="before 5th",K150,0) -> 1639747.806 | M150: 11888.17159 | N150: 0
G151: 0.087 | H151: before 5th | J151: Dec | K151: 5000 | L151: =SUM($K$143:K150)+$L$139+IF(H151="before 5th",K151,0) -> 1644747.806 | M151: 11924.42159 | N151: 0
G152: 0.087 | H152: before 5th | J152: Jan | K152: 5000 | L152: =SUM($K$143:K151)+$L$139+IF(H152="before 5th",K152,0) -> 1649747.806 | M152: 11960.67159 | N152: 0
G153: 0.087 | H153: before 5th | J153: Feb | K153: 5000 | L153: =SUM($K$143:K152)+$L$139+IF(H153="before 5th",K153,0) -> 1654747.806 | M153: 11996.92159 | N153: 0
G154: 0.087 | H154: before 5th | J154: Mar | K154: 5000 | L154: =SUM($K$143:K153)+$L$139+IF(H154="before 5th",K154,0) -> 1659747.806 | M154: 12033.17159 | N154: 0
J155: Year End Balance | L155: =SUM(K143:K154)+SUM(M143:M154)+L139-N155 -> 1801753.365 | N155: =MAX(O143:O154) -> 0
J157: 2nd Extension Year 5 | O157: Withdrawal can be made only once in a year
G158: Interest rate | H158: Deposited | J158: Month | K158: Deposit | L158: Balance | M158: Interest | O158: Withdrawal
G159: 0.087 | H159: before 5th | J159: Apr | K159: 5000 | L159: =$L$155+IF(H159="before 5th",K159,0) -> 1806753.365 | M159: =L159*G159/12 -> 13098.9619 | N159: =IF(O159=MAX($O$159:$O$170),O159,IF(N158=MAX($O$159:$O$170),N158,0)) -> 0
D160: =IF($M$9=0,"Withdrawal limit","") -> Withdrawal limit | F160: =60%*$L$91 -> 651399.52 | G160: 0.087 | H160: before 5th | J160: May | K160: 5000 | L160: =SUM($K$159:K159)+$L$155+IF(H160="before 5th",K160,0) -> 1811753.365 | M160: =L160*G160/12 -> 13135.2119 | N160: =IF(O160=MAX($O$159:$O$170),O160,IF(N159=MAX($O$159:$O$170),N159,0)) -> 0 | P160: PPF investment limit
G161: 0.087 | H161: before 5th | J161: Jun | K161: 5000 | L161: =SUM($K$159:K160)+$L$155+IF(H161="before 5th",K161,0) -> 1816753.365 | M161: 13171.4619 | N161: 0 | P161: 150000
G162: 0.087 | H162: before 5th | J162: Jul | K162: 5000 | L162: =SUM($K$159:K161)+$L$155+IF(H162="before 5th",K162,0) -> 1821753.365 | M162: 13207.7119 | N162: 0 | P162: =IF(SUM(K159:K170)>P161,"Warning: total investment exceeds allowed limit","") -> 
G163: 0.087 | H163: before 5th | J163: Aug | K163: 5000 | L163: =SUM($K$159:K162)+$L$155+IF(H163="before 5th",K163,0) -> 1826753.365 | M163: 13243.9619 | N163: 0
G164: 0.087 | H164: before 5th | J164: Sep | K164: 5000 | L164: =SUM($K$159:K163)+$L$155+IF(H164="before 5th",K164,0) -> 1831753.365 | M164: 13280.2119 | N164: 0 | P164: =IF(N171>F160,"Withdrawal is above limit","") -> 
G165: 0.087 | H165: before 5th | J165: Oct | K165: 5000 | L165: =SUM($K$159:K164)+$L$155+IF(H165="before 5th",K165,0) -> 1836753.365 | M165: 13316.4619 | N165: 0
G166: 0.087 | H166: before 5th | J166: Nov | K166: 5000 | L166: =SUM($K$159:K165)+$L$155+IF(H166="before 5th",K166,0) -> 1841753.365 | M166: 13352.7119 | N166: 0
G167: 0.087 | H167: before 5th | J167: Dec | K167: 5000 | L167: =SUM($K$159:K166)+$L$155+IF(H167="before 5th",K167,0) -> 1846753.365 | M167: 13388.9619 | N167: 0
G168: 0.087 | H168: before 5th | J168: Jan | K168: 5000 | L168: =SUM($K$159:K167)+$L$155+IF(H168="before 5th",K168,0) -> 1851753.365 | M168: 13425.2119 | N168: 0
G169: 0.087 | H169: before 5th | J169: Feb | K169: 5000 | L169: =SUM($K$159:K168)+$L$155+IF(H169="before 5th",K169,0) -> 1856753.365 | M169: 13461.4619 | N169: 0
G170: 0.087 | H170: before 5th | J170: Mar | K170: 5000 | L170: =SUM($K$159:K169)+$L$155+IF(H170="before 5th",K170,0) -> 1861753.365 | M170: 13497.7119 | N170: 0
J171: Year End Balance | L171: =SUM(K159:K170)+SUM(M159:M170)+L155-N171 -> 2021333.408 | N171: =MAX(O159:O170) -> 0

Sheet Interest Rate History
J4: Source:
J5: http://finotax.com/ppf/calculator
